Workbook

Sheet inv_add
E2: شاشة إدخال إذون الإضافة
B5: 5 | C5: التاريخ | D5: رقم الاذن | E5: كود الصنف | F5: اسم الصنف | G5: مخزن الاضافة | H5: الكمية | I5: ملاحظات
A6: =IFERROR(RANK(#REF!,#REF!,1),"") ->  | B6: 1
A7: =IFERROR(RANK(#REF!,#REF!,1),"") ->  | B7: 2
A8: =IFERROR(RANK(#REF!,#REF!,1),"") ->  | B8: 3
A9: =IFERROR(RANK(#REF!,#REF!,1),"") ->  | B9: 4
A10: =IFERROR(RANK(#REF!,#REF!,1),"") ->  | B10: 5
A11: =IFERROR(RANK(#REF!,#REF!,1),"") ->  | B11: 6
A12: =IFERROR(RANK(#REF!,#REF!,1),"") ->  | B12: 7
A13: =IFERROR(RANK(#REF!,#REF!,1),"") ->  | B13: 8
A14: =IFERROR(RANK(#REF!,#REF!,1),"") ->  | B14: 9
A15: =IFERROR(RANK(#REF!,#REF!,1),"") ->  | B15: 10
A16: =IFERROR(RANK(#REF!,#REF!,1),"") ->  | B16: 11
A17: =IFERROR(RANK(#REF!,#REF!,1),"") ->  | B17: 12
A18: =IFERROR(RANK(#REF!,#REF!,1),"") ->  | B18: 13
A19: =IFERROR(RANK(#REF!,#REF!,1),"") ->  | B19: 14
A20: =IFERROR(RANK(#REF!,#REF!,1),"") ->  | B20: 15
A21: =IFERROR(RANK(#REF!,#REF!,1),"") ->  | B21: 16
A22: =IFERROR(RANK(#REF!,#REF!,1),"") ->  | B22: 17
A23: =IFERROR(RANK(#REF!,#REF!,1),"") ->  | B23: 18
A24: =IFERROR(RANK(#REF!,#REF!,1),"") ->  | B24: 19
A25: =IFERROR(RANK(#REF!,#REF!,1),"") ->  | B25: 20
A26: =IFERROR(RANK(#REF!,#REF!,1),"") ->  | B26: 21
A27: =IFERROR(RANK(#REF!,#REF!,1),"") ->  | B27: 22
A28: =IFERROR(RANK(#REF!,#REF!,1),"") ->  | B28: 23
A29: =IFERROR(RANK(#REF!,#REF!,1),"") ->  | B29: 24
A30: =IFERROR(RANK(#REF!,#REF!,1),"") ->  | B30: 25
A31: =IFERROR(RANK(#REF!,#REF!,1),"") ->  | B31: 26
A32: =IFERROR(RANK(#REF!,#REF!,1),"") ->  | B32: 27
A33: =IFERROR(RANK(#REF!,#REF!,1),"") ->  | B33: 28
A34: =IFERROR(RANK(#REF!,#REF!,1),"") -> 
A35: =IFERROR(RANK(#REF!,#REF!,1),"") -> 
A36: =IFERROR(RANK(#REF!,#REF!,1),"") -> 
A37: =IFERROR(RANK(#REF!,#REF!,1),"") -> 
A38: =IFERROR(RANK(#REF!,#REF!,1),"") -> 
A39: =IFERROR(RANK(#REF!,#REF!,1),"") -> 
A40: =IFERROR(RANK(#REF!,#REF!,1),"") -> 
A41: =IFERROR(RANK(#REF!,#REF!,1),"") -> 
A42: =IFERROR(RANK(#REF!,#REF!,1),"") -> 
A43: =IFERROR(RANK(#REF!,#REF!,1),"") -> 
A44: =IFERROR(RANK(#REF!,#REF!,1),"") -> 
A45: =IFERROR(RANK(#REF!,#REF!,1),"") ->  | B45: =IF(AND(C45<>"",D45<>""),B44+1,"") -> 
A46: =IFERROR(RANK(#REF!,#REF!,1),"") -> 
A47: =IFERROR(RANK(#REF!,#REF!,1),"") -> 
A48: =IFERROR(RANK(#REF!,#REF!,1),"") -> 
A49: =IFERROR(RANK(#REF!,#REF!,1),"") -> 
A50: =IFERROR(RANK(#REF!,#REF!,1),"") -> 
A51: =IFERROR(RANK(#REF!,#REF!,1),"") -> 
A52: =IFERROR(RANK(#REF!,#REF!,1),"") -> 
A53: =IFERROR(RANK(#REF!,#REF!,1),"") -> 
A54: =IFERROR(RANK(#REF!,#REF!,1),"") -> 
A55: =IFERROR(RANK(#REF!,#REF!,1),"") -> 
A56: =IFERROR(RANK(#REF!,#REF!,1),"") -> 
A57: =IFERROR(RANK(#REF!,#REF!,1),"") -> 
A58: =IFERROR(RANK(#REF!,#REF!,1),"") -> 
A59: =IFERROR(RANK(#REF!,#REF!,1),"") -> 
A60: =IFERROR(RANK(#REF!,#REF!,1),"") -> 
A61: =IFERROR(RANK(#REF!,#REF!,1),"") -> 
A62: =IFERROR(RANK(#REF!,#REF!,1),"") -> 
A63: =IFERROR(RANK(#REF!,#REF!,1),"") -> 
A64: =IFERROR(RANK(#REF!,#REF!,1),"") -> 
A65: =IFERROR(RANK(#REF!,#REF!,1),"") -> 
A66: =IFERROR(RANK(#REF!,#REF!,1),"") -> 
A67: =IFERROR(RANK(#REF!,#REF!,1),"") -> 
A68: =IFERROR(RANK(#REF!,#REF!,1),"") -> 
A69: =IFERROR(RANK(#REF!,#REF!,1),"") -> 
A70: =IFERROR(RANK(#REF!,#REF!,1),"") -> 
A71: =IFERROR(RANK(#REF!,#REF!,1),"") ->  | B71: =IF(AND(C71<>"",D71<>""),B70+1,"") -> 
A72: =IFERROR(RANK(#REF!,#REF!,1),"") -> 
A73: =IFERROR(RANK(#REF!,#REF!,1),"") -> 
A74: =IFERROR(RANK(#REF!,#REF!,1),"") -> 
A75: =IFERROR(RANK(#REF!,#REF!,1),"") -> 
A76: =IFERROR(RANK(#REF!,#REF!,1),"") ->  | E76: =IFERROR(VLOOKUP(D76,OFFSET(cod!$C$6,,,COUNTA(cod!C:C),2),2,0),"") -> استك اصلي
A77: =IFERROR(RANK(#REF!,#REF!,1),"") ->  | E77: =IFERROR(VLOOKUP(D77,OFFSET(cod!$C$6,,,COUNTA(cod!C:C),2),2,0),"") -> استك اصلي
A78: =IFERROR(RANK(#REF!,#REF!,1),"") ->  | E78: =IFERROR(VLOOKUP(D78,OFFSET(cod!$C$6,,,COUNTA(cod!C:C),2),2,0),"") -> استك اصلي
A79: =IFERROR(RANK(#REF!,#REF!,1),"") ->  | E79: =IFERROR(VLOOKUP(D79,OFFSET(cod!$C$6,,,COUNTA(cod!C:C),2),2,0),"") -> استك اصلي
A80: =IFERROR(RANK(#REF!,#REF!,1),"") ->  | E80: =IFERROR(VLOOKUP(D80,OFFSET(cod!$C$6,,,COUNTA(cod!C:C),2),2,0),"") -> استك اصلي
A81: =IFERROR(RANK(#REF!,#REF!,1),"") ->  | E81: =IFERROR(VLOOKUP(D81,OFFSET(cod!$C$6,,,COUNTA(cod!C:C),2),2,0),"") -> استك اصلي
A82: =IFERROR(RANK(#REF!,#REF!,1),"") ->  | E82: =IFERROR(VLOOKUP(D82,OFFSET(cod!$C$6,,,COUNTA(cod!C:C),2),2,0),"") -> استك اصلي
A83: =IFERROR(RANK(#REF!,#REF!,1),"") ->  | E83: =IFERROR(VLOOKUP(D83,OFFSET(cod!$C$6,,,COUNTA(cod!C:C),2),2,0),"") -> استك اصلي
A84: =IFERROR(RANK(#REF!,#REF!,1),"") ->  | E84: =IFERROR(VLOOKUP(D84,OFFSET(cod!$C$6,,,COUNTA(cod!C:C),2),2,0),"") -> استك اصلي
A85: =IFERROR(RANK(#REF!,#REF!,1),"") ->  | E85: =IFERROR(VLOOKUP(D85,OFFSET(cod!$C$6,,,COUNTA(cod!C:C),2),2,0),"") -> استك اصلي
A86: =IFERROR(RANK(#REF!,#REF!,1),"") ->  | E86: =IFERROR(VLOOKUP(D86,OFFSET(cod!$C$6,,,COUNTA(cod!C:C),2),2,0),"") -> استك اصلي
A87: =IFERROR(RANK(#REF!,#REF!,1),"") ->  | E87: =IFERROR(VLOOKUP(D87,OFFSET(cod!$C$6,,,COUNTA(cod!C:C),2),2,0),"") -> استك اصلي
A88: =IFERROR(RANK(#REF!,#REF!,1),"") ->  | E88: =IFERROR(VLOOKUP(D88,OFFSET(cod!$C$6,,,COUNTA(cod!C:C),2),2,0),"") -> استك اصلي
A89: =IFERROR(RANK(#REF!,#REF!,1),"") ->  | E89: =IFERROR(VLOOKUP(D89,OFFSET(cod!$C$6,,,COUNTA(cod!C:C),2),2,0),"") -> استك اصلي
A90: =IFERROR(RANK(#REF!,#REF!,1),"") ->  | E90: =IFERROR(VLOOKUP(D90,OFFSET(cod!$C$6,,,COUNTA(cod!C:C),2),2,0),"") -> استك اصلي
A91: =IFERROR(RANK(#REF!,#REF!,1),"") ->  | E91: =IFERROR(VLOOKUP(D91,OFFSET(cod!$C$6,,,COUNTA(cod!C:C),2),2,0),"") -> استك اصلي
A92: =IFERROR(RANK(#REF!,#REF!,1),"") ->  | E92: =IFERROR(VLOOKUP(D92,OFFSET(cod!$C$6,,,COUNTA(cod!C:C),2),2,0),"") -> استك اصلي
A93: =IFERROR(RANK(#REF!,#REF!,1),"") ->  | E93: =IFERROR(VLOOKUP(D93,OFFSET(cod!$C$6,,,COUNTA(cod!C:C),2),2,0),"") -> استك اصلي
A94: =IFERROR(RANK(#REF!,#REF!,1),"") ->  | E94: =IFERROR(VLOOKUP(D94,OFFSET(cod!$C$6,,,COUNTA(cod!C:C),2),2,0),"") -> استك اصلي
A95: =IFERROR(RANK(#REF!,#REF!,1),"") ->  | E95: =IFERROR(VLOOKUP(D95,OFFSET(cod!$C$6,,,COUNTA(cod!C:C),2),2,0),"") -> استك اصلي
A96: =IFERROR(RANK(#REF!,#REF!,1),"") ->  | E96: =IFERROR(VLOOKUP(D96,OFFSET(cod!$C$6,,,COUNTA(cod!C:C),2),2,0),"") -> استك اصلي
A97: =IFERROR(RANK(#REF!,#REF!,1),"") ->  | E97: =IFERROR(VLOOKUP(D97,OFFSET(cod!$C$6,,,COUNTA(cod!C:C),2),2,0),"") -> استك اصلي
A98: =IFERROR(RANK(#REF!,#REF!,1),"") ->  | E98: =IFERROR(VLOOKUP(D98,OFFSET(cod!$C$6,,,COUNTA(cod!C:C),2),2,0),"") -> استك اصلي
A99: =IFERROR(RANK(#REF!,#REF!,1),"") ->  | E99: =IFERROR(VLOOKUP(D99,OFFSET(cod!$C$6,,,COUNTA(cod!C:C),2),2,0),"") -> استك اصلي
A100: =IFERROR(RANK(#REF!,#REF!,1),"") ->  | E100: =IFERROR(VLOOKUP(D100,OFFSET(cod!$C$6,,,COUNTA(cod!C:C),2),2,0),"") -> استك اصلي
A101: =IFERROR(RANK(#REF!,#REF!,1),"") ->  | E101: =IFERROR(VLOOKUP(D101,OFFSET(cod!$C$6,,,COUNTA(cod!C:C),2),2,0),"") -> استك اصلي
A102: =IFERROR(RANK(#REF!,#REF!,1),"") ->  | E102: =IFERROR(VLOOKUP(D102,OFFSET(cod!$C$6,,,COUNTA(cod!C:C),2),2,0),"") -> استك اصلي
A103: =IFERROR(RANK(#REF!,#REF!,1),"") ->  | E103: =IFERROR(VLOOKUP(D103,OFFSET(cod!$C$6,,,COUNTA(cod!C:C),2),2,0),"") -> استك اصلي
A104: =IFERROR(RANK(#REF!,#REF!,1),"") ->  | E104: =IFERROR(VLOOKUP(D104,OFFSET(cod!$C$6,,,COUNTA(cod!C:C),2),2,0),"") -> استك اصلي
A105: =IFERROR(RANK(#REF!,#REF!,1),"") ->  | E105: =IFERROR(VLOOKUP(D105,OFFSET(cod!$C$6,,,COUNTA(cod!C:C),2),2,0),"") -> استك اصلي
A106: =IFERROR(RANK(#REF!,#REF!,1),"") ->  | E106: =IFERROR(VLOOKUP(D106,OFFSET(cod!$C$6,,,COUNTA(cod!C:C),2),2,0),"") -> استك اصلي
A107: =IFERROR(RANK(#REF!,#REF!,1),"") ->  | E107: =IFERROR(VLOOKUP(D107,OFFSET(cod!$C$6,,,COUNTA(cod!C:C),2),2,0),"") -> استك اصلي
A108: =IFERROR(RANK(#REF!,#REF!,1),"") ->  | E108: =IFERROR(VLOOKUP(D108,OFFSET(cod!$C$6,,,COUNTA(cod!C:C),2),2,0),"") -> استك اصلي
A109: =IFERROR(RANK(#REF!,#REF!,1),"") ->  | E109: =IFERROR(VLOOKUP(D109,OFFSET(cod!$C$6,,,COUNTA(cod!C:C),2),2,0),"") -> استك اصلي
A110: =IFERROR(RANK(#REF!,#REF!,1),"") ->  | E110: =IFERROR(VLOOKUP(D110,OFFSET(cod!$C$6,,,COUNTA(cod!C:C),2),2,0),"") -> استك اصلي
A111: =IFERROR(RANK(#REF!,#REF!,1),"") ->  | E111: =IFERROR(VLOOKUP(D111,OFFSET(cod!$C$6,,,COUNTA(cod!C:C),2),2,0),"") -> استك اصلي
A112: =IFERROR(RANK(#REF!,#REF!,1),"") ->  | E112: =IFERROR(VLOOKUP(D112,OFFSET(cod!$C$6,,,COUNTA(cod!C:C),2),2,0),"") -> استك اصلي
A113: =IFERROR(RANK(#REF!,#REF!,1),"") ->  | E113: =IFERROR(VLOOKUP(D113,OFFSET(cod!$C$6,,,COUNTA(cod!C:C),2),2,0),"") -> استك اصلي
A114: =IFERROR(RANK(#REF!,#REF!,1),"") ->  | E114: =IFERROR(VLOOKUP(D114,OFFSET(cod!$C$6,,,COUNTA(cod!C:C),2),2,0),"") -> استك اصلي
A115: =IFERROR(RANK(#REF!,#REF!,1),"") ->  | E115: =IFERROR(VLOOKUP(D115,OFFSET(cod!$C$6,,,COUNTA(cod!C:C),2),2,0),"") -> استك اصلي
A116: =IFERROR(RANK(#REF!,#REF!,1),"") ->  | E116: =IFERROR(VLOOKUP(D116,OFFSET(cod!$C$6,,,COUNTA(cod!C:C),2),2,0),"") -> استك اصلي
A117: =IFERROR(RANK(#REF!,#REF!,1),"") ->  | E117: =IFERROR(VLOOKUP(D117,OFFSET(cod!$C$6,,,COUNTA(cod!C:C),2),2,0),"") -> استك اصلي
A118: =IFERROR(RANK(#REF!,#REF!,1),"") ->  | E118: =IFERROR(VLOOKUP(D118,OFFSET(cod!$C$6,,,COUNTA(cod!C:C),2),2,0),"") -> استك اصلي
A119: =IFERROR(RANK(#REF!,#REF!,1),"") ->  | E119: =IFERROR(VLOOKUP(D119,OFFSET(cod!$C$6,,,COUNTA(cod!C:C),2),2,0),"") -> استك اصلي
A120: =IFERROR(RANK(#REF!,#REF!,1),"") ->  | E120: =IFERROR(VLOOKUP(D120,OFFSET(cod!$C$6,,,COUNTA(cod!C:C),2),2,0),"") -> استك اصلي
A121: =IFERROR(RANK(#REF!,#REF!,1),"") ->  | E121: =IFERROR(VLOOKUP(D121,OFFSET(cod!$C$6,,,COUNTA(cod!C:C),2),2,0),"") -> استك اصلي
A122: =IFERROR(RANK(#REF!,#REF!,1),"") ->  | E122: =IFERROR(VLOOKUP(D122,OFFSET(cod!$C$6,,,COUNTA(cod!C:C),2),2,0),"") -> استك اصلي
A123: =IFERROR(RANK(#REF!,#REF!,1),"") ->  | E123: =IFERROR(VLOOKUP(D123,OFFSET(cod!$C$6,,,COUNTA(cod!C:C),2),2,0),"") -> استك اصلي
A124: =IFERROR(RANK(#REF!,#REF!,1),"") ->  | E124: =IFERROR(VLOOKUP(D124,OFFSET(cod!$C$6,,,COUNTA(cod!C:C),2),2,0),"") -> استك اصلي
A125: =IFERROR(RANK(#REF!,#REF!,1),"") ->  | E125: =IFERROR(VLOOKUP(D125,OFFSET(cod!$C$6,,,COUNTA(cod!C:C),2),2,0),"") -> استك اصلي
A126: =IFERROR(RANK(#REF!,#REF!,1),"") ->  | E126: =IFERROR(VLOOKUP(D126,OFFSET(cod!$C$6,,,COUNTA(cod!C:C),2),2,0),"") -> استك اصلي
A127: =IFERROR(RANK(#REF!,#REF!,1),"") ->  | E127: =IFERROR(VLOOKUP(D127,OFFSET(cod!$C$6,,,COUNTA(cod!C:C),2),2,0),"") -> استك اصلي
A128: =IFERROR(RANK(#REF!,#REF!,1),"") ->  | E128: =IFERROR(VLOOKUP(D128,OFFSET(cod!$C$6,,,COUNTA(cod!C:C),2),2,0),"") -> استك اصلي
A129: =IFERROR(RANK(#REF!,#REF!,1),"") ->  | E129: =IFERROR(VLOOKUP(D129,OFFSET(cod!$C$6,,,COUNTA(cod!C:C),2),2,0),"") -> استك اصلي
A130: =IFERROR(RANK(#REF!,#REF!,1),"") ->  | E130: =IFERROR(VLOOKUP(D130,OFFSET(cod!$C$6,,,COUNTA(cod!C:C),2),2,0),"") -> استك اصلي
A131: =IFERROR(RANK(#REF!,#REF!,1),"") ->  | E131: =IFERROR(VLOOKUP(D131,OFFSET(cod!$C$6,,,COUNTA(cod!C:C),2),2,0),"") -> استك اصلي
A132: =IFERROR(RANK(#REF!,#REF!,1),"") ->  | E132: =IFERROR(VLOOKUP(D132,OFFSET(cod!$C$6,,,COUNTA(cod!C:C),2),2,0),"") -> استك اصلي
A133: =IFERROR(RANK(#REF!,#REF!,1),"") ->  | E133: =IFERROR(VLOOKUP(D133,OFFSET(cod!$C$6,,,COUNTA(cod!C:C),2),2,0),"") -> استك اصلي
A134: =IFERROR(RANK(#REF!,#REF!,1),"") ->  | E134: =IFERROR(VLOOKUP(D134,OFFSET(cod!$C$6,,,COUNTA(cod!C:C),2),2,0),"") -> استك اصلي
A135: =IFERROR(RANK(#REF!,#REF!,1),"") ->  | B135: =IF(AND(C135<>"",D135<>""),B134+1,"") ->  | E135: =IFERROR(VLOOKUP(D135,OFFSET(cod!$C$6,,,COUNTA(cod!C:C),2),2,0),"") -> استك اصلي
A136: =IFERROR(RANK(#REF!,#REF!,1),"") ->  | E136: =IFERROR(VLOOKUP(D136,OFFSET(cod!$C$6,,,COUNTA(cod!C:C),2),2,0),"") -> استك اصلي
A137: =IFERROR(RANK(#REF!,#REF!,1),"") ->  | E137: =IFERROR(VLOOKUP(D137,OFFSET(cod!$C$6,,,COUNTA(cod!C:C),2),2,0),"") -> استك اصلي
A138: =IFERROR(RANK(#REF!,#REF!,1),"") ->  | E138: =IFERROR(VLOOKUP(D138,OFFSET(cod!$C$6,,,COUNTA(cod!C:C),2),2,0),"") -> استك اصلي
A139: =IFERROR(RANK(#REF!,#REF!,1),"") ->  | E139: =IFERROR(VLOOKUP(D139,OFFSET(cod!$C$6,,,COUNTA(cod!C:C),2),2,0),"") -> استك اصلي
A140: =IFERROR(RANK(#REF!,#REF!,1),"") ->  | E140: =IFERROR(VLOOKUP(D140,OFFSET(cod!$C$6,,,COUNTA(cod!C:C),2),2,0),"") -> استك اصلي
A141: =IFERROR(RANK(#REF!,#REF!,1),"") ->  | E141: =IFERROR(VLOOKUP(D141,OFFSET(cod!$C$6,,,COUNTA(cod!C:C),2),2,0),"") -> استك اصلي
A142: =IFERROR(RANK(#REF!,#REF!,1),"") ->  | E142: =IFERROR(VLOOKUP(D142,OFFSET(cod!$C$6,,,COUNTA(cod!C:C),2),2,0),"") -> استك اصلي
A143: =IFERROR(RANK(#REF!,#REF!,1),"") ->  | E143: =IFERROR(VLOOKUP(D143,OFFSET(cod!$C$6,,,COUNTA(cod!C:C),2),2,0),"") -> استك اصلي
A144: =IFERROR(RANK(#REF!,#REF!,1),"") ->  | E144: =IFERROR(VLOOKUP(D144,OFFSET(cod!$C$6,,,COUNTA(cod!C:C),2),2,0),"") -> استك اصلي
A145: =IFERROR(RANK(#REF!,#REF!,1),"") ->  | E145: =IFERROR(VLOOKUP(D145,OFFSET(cod!$C$6,,,COUNTA(cod!C:C),2),2,0),"") -> استك اصلي
A146: =IFERROR(RANK(#REF!,#REF!,1),"") ->  | E146: =IFERROR(VLOOKUP(D146,OFFSET(cod!$C$6,,,COUNTA(cod!C:C),2),2,0),"") -> استك اصلي
A147: =IFERROR(RANK(#REF!,#REF!,1),"") ->  | E147: =IFERROR(VLOOKUP(D147,OFFSET(cod!$C$6,,,COUNTA(cod!C:C),2),2,0),"") -> استك اصلي
A148: =IFERROR(RANK(#REF!,#REF!,1),"") ->  | E148: =IFERROR(VLOOKUP(D148,OFFSET(cod!$C$6,,,COUNTA(cod!C:C),2),2,0),"") -> استك اصلي
A149: =IFERROR(RANK(#REF!,#REF!,1),"") ->  | E149: =IFERROR(VLOOKUP(D149,OFFSET(cod!$C$6,,,COUNTA(cod!C:C),2),2,0),"") -> استك اصلي
A150: =IFERROR(RANK(#REF!,#REF!,1),"") ->  | E150: =IFERROR(VLOOKUP(D150,OFFSET(cod!$C$6,,,COUNTA(cod!C:C),2),2,0),"") -> استك اصلي
A151: =IFERROR(RANK(#REF!,#REF!,1),"") ->  | E151: =IFERROR(VLOOKUP(D151,OFFSET(cod!$C$6,,,COUNTA(cod!C:C),2),2,0),"") -> استك اصلي
A152: =IFERROR(RANK(#REF!,#REF!,1),"") ->  | E152: =IFERROR(VLOOKUP(D152,OFFSET(cod!$C$6,,,COUNTA(cod!C:C),2),2,0),"") -> استك اصلي
A153: =IFERROR(RANK(#REF!,#REF!,1),"") ->  | E153: =IFERROR(VLOOKUP(D153,OFFSET(cod!$C$6,,,COUNTA(cod!C:C),2),2,0),"") -> استك اصلي
A154: =IFERROR(RANK(#REF!,#REF!,1),"") ->  | E154: =IFERROR(VLOOKUP(D154,OFFSET(cod!$C$6,,,COUNTA(cod!C:C),2),2,0),"") -> استك اصلي
A155: =IFERROR(RANK(#REF!,#REF!,1),"") ->  | E155: =IFERROR(VLOOKUP(D155,OFFSET(cod!$C$6,,,COUNTA(cod!C:C),2),2,0),"") -> استك اصلي
A156: =IFERROR(RANK(#REF!,#REF!,1),"") ->  | E156: =IFERROR(VLOOKUP(D156,OFFSET(cod!$C$6,,,COUNTA(cod!C:C),2),2,0),"") -> استك اصلي
A157: =IFERROR(RANK(#REF!,#REF!,1),"") ->  | E157: =IFERROR(VLOOKUP(D157,OFFSET(cod!$C$6,,,COUNTA(cod!C:C),2),2,0),"") -> استك اصلي
A158: =IFERROR(RANK(#REF!,#REF!,1),"") ->  | E158: =IFERROR(VLOOKUP(D158,OFFSET(cod!$C$6,,,COUNTA(cod!C:C),2),2,0),"") -> استك اصلي
A159: =IFERROR(RANK(#REF!,#REF!,1),"") ->  | E159: =IFERROR(VLOOKUP(D159,OFFSET(cod!$C$6,,,COUNTA(cod!C:C),2),2,0),"") -> استك اصلي
A160: =IFERROR(RANK(#REF!,#REF!,1),"") ->  | E160: =IFERROR(VLOOKUP(D160,OFFSET(cod!$C$6,,,COUNTA(cod!C:C),2),2,0),"") -> استك اصلي
A161: =IFERROR(RANK(#REF!,#REF!,1),"") ->  | E161: =IFERROR(VLOOKUP(D161,OFFSET(cod!$C$6,,,COUNTA(cod!C:C),2),2,0),"") -> استك اصلي
A162: =IFERROR(RANK(#REF!,#REF!,1),"") ->  | E162: =IFERROR(VLOOKUP(D162,OFFSET(cod!$C$6,,,COUNTA(cod!C:C),2),2,0),"") -> استك اصلي
A163: =IFERROR(RANK(#REF!,#REF!,1),"") ->  | E163: =IFERROR(VLOOKUP(D163,OFFSET(cod!$C$6,,,COUNTA(cod!C:C),2),2,0),"") -> استك اصلي
A164: =IFERROR(RANK(#REF!,#REF!,1),"") ->  | E164: =IFERROR(VLOOKUP(D164,OFFSET(cod!$C$6,,,COUNTA(cod!C:C),2),2,0),"") -> استك اصلي
A165: =IFERROR(RANK(#REF!,#REF!,1),"") ->  | E165: =IFERROR(VLOOKUP(D165,OFFSET(cod!$C$6,,,COUNTA(cod!C:C),2),2,0),"") -> استك اصلي
A166: =IFERROR(RANK(#REF!,#REF!,1),"") ->  | E166: =IFERROR(VLOOKUP(D166,OFFSET(cod!$C$6,,,COUNTA(cod!C:C),2),2,0),"") -> استك اصلي
A167: =IFERROR(RANK(#REF!,#REF!,1),"") ->  | E167: =IFERROR(VLOOKUP(D167,OFFSET(cod!$C$6,,,COUNTA(cod!C:C),2),2,0),"") -> استك اصلي
A168: =IFERROR(RANK(#REF!,#REF!,1),"") ->  | E168: =IFERROR(VLOOKUP(D168,OFFSET(cod!$C$6,,,COUNTA(cod!C:C),2),2,0),"") -> استك اصلي
A169: =IFERROR(RANK(#REF!,#REF!,1),"") ->  | E169: =IFERROR(VLOOKUP(D169,OFFSET(cod!$C$6,,,COUNTA(cod!C:C),2),2,0),"") -> استك اصلي
A170: =IFERROR(RANK(#REF!,#REF!,1),"") ->  | E170: =IFERROR(VLOOKUP(D170,OFFSET(cod!$C$6,,,COUNTA(cod!C:C),2),2,0),"") -> استك اصلي
A171: =IFERROR(RANK(#REF!,#REF!,1),"") ->  | E171: =IFERROR(VLOOKUP(D171,OFFSET(cod!$C$6,,,COUNTA(cod!C:C),2),2,0),"") -> استك اصلي
A172: =IFERROR(RANK(#REF!,#REF!,1),"") ->  | E172: =IFERROR(VLOOKUP(D172,OFFSET(cod!$C$6,,,COUNTA(cod!C:C),2),2,0),"") -> استك اصلي
A173: =IFERROR(RANK(#REF!,#REF!,1),"") ->  | E173: =IFERROR(VLOOKUP(D173,OFFSET(cod!$C$6,,,COUNTA(cod!C:C),2),2,0),"") -> استك اصلي
A174: =IFERROR(RANK(#REF!,#REF!,1),"") ->  | E174: =IFERROR(VLOOKUP(D174,OFFSET(cod!$C$6,,,COUNTA(cod!C:C),2),2,0),"") -> استك اصلي
A175: =IFERROR(RANK(#REF!,#REF!,1),"") ->  | E175: =IFERROR(VLOOKUP(D175,OFFSET(cod!$C$6,,,COUNTA(cod!C:C),2),2,0),"") -> استك اصلي
A176: =IFERROR(RANK(#REF!,#REF!,1),"") ->  | E176: =IFERROR(VLOOKUP(D176,OFFSET(cod!$C$6,,,COUNTA(cod!C:C),2),2,0),"") -> استك اصلي
A177: =IFERROR(RANK(#REF!,#REF!,1),"") ->  | E177: =IFERROR(VLOOKUP(D177,OFFSET(cod!$C$6,,,COUNTA(cod!C:C),2),2,0),"") -> استك اصلي
A178: =IFERROR(RANK(#REF!,#REF!,1),"") ->  | E178: =IFERROR(VLOOKUP(D178,OFFSET(cod!$C$6,,,COUNTA(cod!C:C),2),2,0),"") -> استك اصلي
A179: =IFERROR(RANK(#REF!,#REF!,1),"") ->  | E179: =IFERROR(VLOOKUP(D179,OFFSET(cod!$C$6,,,COUNTA(cod!C:C),2),2,0),"") -> استك اصلي
A180: =IFERROR(RANK(#REF!,#REF!,1),"") ->  | E180: =IFERROR(VLOOKUP(D180,OFFSET(cod!$C$6,,,COUNTA(cod!C:C),2),2,0),"") -> استك اصلي
A181: =IFERROR(RANK(#REF!,#REF!,1),"") ->  | E181: =IFERROR(VLOOKUP(D181,OFFSET(cod!$C$6,,,COUNTA(cod!C:C),2),2,0),"") -> استك اصلي
A182: =IFERROR(RANK(#REF!,#REF!,1),"") ->  | E182: =IFERROR(VLOOKUP(D182,OFFSET(cod!$C$6,,,COUNTA(cod!C:C),2),2,0),"") -> استك اصلي
A183: =IFERROR(RANK(#REF!,#REF!,1),"") ->  | E183: =IFERROR(VLOOKUP(D183,OFFSET(cod!$C$6,,,COUNTA(cod!C:C),2),2,0),"") -> استك اصلي
A184: =IFERROR(RANK(#REF!,#REF!,1),"") ->  | E184: =IFERROR(VLOOKUP(D184,OFFSET(cod!$C$6,,,COUNTA(cod!C:C),2),2,0),"") -> استك اصلي
A185: =IFERROR(RANK(#REF!,#REF!,1),"") ->  | E185: =IFERROR(VLOOKUP(D185,OFFSET(cod!$C$6,,,COUNTA(cod!C:C),2),2,0),"") -> استك اصلي
A186: =IFERROR(RANK(#REF!,#REF!,1),"") ->  | E186: =IFERROR(VLOOKUP(D186,OFFSET(cod!$C$6,,,COUNTA(cod!C:C),2),2,0),"") -> استك اصلي
A187: =IFERROR(RANK(#REF!,#REF!,1),"") ->  | E187: =IFERROR(VLOOKUP(D187,OFFSET(cod!$C$6,,,COUNTA(cod!C:C),2),2,0),"") -> استك اصلي
A188: =IFERROR(RANK(#REF!,#REF!,1),"") ->  | E188: =IFERROR(VLOOKUP(D188,OFFSET(cod!$C$6,,,COUNTA(cod!C:C),2),2,0),"") -> استك اصلي
A189: =IFERROR(RANK(#REF!,#REF!,1),"") ->  | E189: =IFERROR(VLOOKUP(D189,OFFSET(cod!$C$6,,,COUNTA(cod!C:C),2),2,0),"") -> استك اصلي
A190: =IFERROR(RANK(#REF!,#REF!,1),"") ->  | E190: =IFERROR(VLOOKUP(D190,OFFSET(cod!$C$6,,,COUNTA(cod!C:C),2),2,0),"") -> استك اصلي
A191: =IFERROR(RANK(#REF!,#REF!,1),"") ->  | E191: =IFERROR(VLOOKUP(D191,OFFSET(cod!$C$6,,,COUNTA(cod!C:C),2),2,0),"") -> استك اصلي
A192: =IFERROR(RANK(#REF!,#REF!,1),"") ->  | E192: =IFERROR(VLOOKUP(D192,OFFSET(cod!$C$6,,,COUNTA(cod!C:C),2),2,0),"") -> استك اصلي
A193: =IFERROR(RANK(#REF!,#REF!,1),"") ->  | E193: =IFERROR(VLOOKUP(D193,OFFSET(cod!$C$6,,,COUNTA(cod!C:C),2),2,0),"") -> استك اصلي
A194: =IFERROR(RANK(#REF!,#REF!,1),"") ->  | E194: =IFERROR(VLOOKUP(D194,OFFSET(cod!$C$6,,,COUNTA(cod!C:C),2),2,0),"") -> استك اصلي
A195: =IFERROR(RANK(#REF!,#REF!,1),"") ->  | E195: =IFERROR(VLOOKUP(D195,OFFSET(cod!$C$6,,,COUNTA(cod!C:C),2),2,0),"") -> استك اصلي
A196: =IFERROR(RANK(#REF!,#REF!,1),"") ->  | E196: =IFERROR(VLOOKUP(D196,OFFSET(cod!$C$6,,,COUNTA(cod!C:C),2),2,0),"") -> استك اصلي
A197: =IFERROR(RANK(#REF!,#REF!,1),"") ->  | E197: =IFERROR(VLOOKUP(D197,OFFSET(cod!$C$6,,,COUNTA(cod!C:C),2),2,0),"") -> استك اصلي
A198: =IFERROR(RANK(#REF!,#REF!,1),"") ->  | E198: =IFERROR(VLOOKUP(D198,OFFSET(cod!$C$6,,,COUNTA(cod!C:C),2),2,0),"") -> استك اصلي
A199: =IFERROR(RANK(#REF!,#REF!,1),"") ->  | B199: =IF(AND(C199<>"",D199<>""),B198+1,"") ->  | E199: =IFERROR(VLOOKUP(D199,OFFSET(cod!$C$6,,,COUNTA(cod!C:C),2),2,0),"") -> استك اصلي
A200: =IFERROR(RANK(#REF!,#REF!,1),"") ->  | E200: =IFERROR(VLOOKUP(D200,OFFSET(cod!$C$6,,,COUNTA(cod!C:C),2),2,0),"") -> استك اصلي
A201: =IFERROR(RANK(#REF!,#REF!,1),"") ->  | E201: =IFERROR(VLOOKUP(D201,OFFSET(cod!$C$6,,,COUNTA(cod!C:C),2),2,0),"") -> استك اصلي
A202: =IFERROR(RANK(#REF!,#REF!,1),"") ->  | E202: =IFERROR(VLOOKUP(D202,OFFSET(cod!$C$6,,,COUNTA(cod!C:C),2),2,0),"") -> استك اصلي
A203: =IFERROR(RANK(#REF!,#REF!,1),"") ->  | E203: =IFERROR(VLOOKUP(D203,OFFSET(cod!$C$6,,,COUNTA(cod!C:C),2),2,0),"") -> استك اصلي
... 347 more rows

Sheet inv_out
E2: شاشة صرف الصنف
B5: م | C5: التاريخ | D5: رقم الاذن | E5: كود الصنف | F5: اسم الصنف | G5: جهة الصرف | H5: الكمية | I5: ملاحظات
A6: =IFERROR(RANK(#REF!,#REF!,1),"") ->  | B6: 1
A7: =IFERROR(RANK(#REF!,#REF!,1),"") ->  | B7: 2
A8: =IFERROR(RANK(#REF!,#REF!,1),"") ->  | B8: 3
A9: =IFERROR(RANK(#REF!,#REF!,1),"") ->  | B9: 4
A10: =IFERROR(RANK(#REF!,#REF!,1),"") ->  | B10: 5
A11: =IFERROR(RANK(#REF!,#REF!,1),"") ->  | B11: 6
A12: =IFERROR(RANK(#REF!,#REF!,1),"") ->  | B12: 7
A13: =IFERROR(RANK(#REF!,#REF!,1),"") ->  | B13: 8
A14: =IFERROR(RANK(#REF!,#REF!,1),"") ->  | B14: 9
A15: =IFERROR(RANK(#REF!,#REF!,1),"") ->  | B15: 10
A16: =IFERROR(RANK(#REF!,#REF!,1),"") ->  | B16: 11
A17: =IFERROR(RANK(#REF!,#REF!,1),"") ->  | B17: 12
A18: =IFERROR(RANK(#REF!,#REF!,1),"") ->  | B18: 13
A19: =IFERROR(RANK(#REF!,#REF!,1),"") ->  | B19: 14
A20: =IFERROR(RANK(#REF!,#REF!,1),"") ->  | B20: 15
A21: =IFERROR(RANK(#REF!,#REF!,1),"") ->  | B21: 16
A22: =IFERROR(RANK(#REF!,#REF!,1),"") ->  | B22: 17
A23: =IFERROR(RANK(#REF!,#REF!,1),"") ->  | B23: 18
A24: =IFERROR(RANK(#REF!,#REF!,1),"") ->  | B24: 19
A25: =IFERROR(RANK(#REF!,#REF!,1),"") ->  | B25: 20
A26: =IFERROR(RANK(#REF!,#REF!,1),"") ->  | B26: 21
A27: =IFERROR(RANK(#REF!,#REF!,1),"") ->  | B27: 22
A28: =IFERROR(RANK(#REF!,#REF!,1),"") -> 
A29: =IFERROR(RANK(#REF!,#REF!,1),"") -> 
A30: =IFERROR(RANK(#REF!,#REF!,1),"") -> 
A31: =IFERROR(RANK(#REF!,#REF!,1),"") -> 
A32: =IFERROR(RANK(#REF!,#REF!,1),"") -> 
A33: =IFERROR(RANK(#REF!,#REF!,1),"") -> 
A34: =IFERROR(RANK(#REF!,#REF!,1),"") -> 
A35: =IFERROR(RANK(#REF!,#REF!,1),"") -> 
A36: =IFERROR(RANK(#REF!,#REF!,1),"") -> 
A37: =IFERROR(RANK(#REF!,#REF!,1),"") -> 
A38: =IFERROR(RANK(#REF!,#REF!,1),"") -> 
A39: =IFERROR(RANK(#REF!,#REF!,1),"") ->  | B39: =IF(AND(C39<>"",D39<>""),B38+1,"") -> 
A40: =IFERROR(RANK(#REF!,#REF!,1),"") -> 
A41: =IFERROR(RANK(#REF!,#REF!,1),"") -> 
A42: =IFERROR(RANK(#REF!,#REF!,1),"") -> 
A43: =IFERROR(RANK(#REF!,#REF!,1),"") -> 
A44: =IFERROR(RANK(#REF!,#REF!,1),"") -> 
A45: =IFERROR(RANK(#REF!,#REF!,1),"") -> 
A46: =IFERROR(RANK(#REF!,#REF!,1),"") -> 
A47: =IFERROR(RANK(#REF!,#REF!,1),"") -> 
A48: =IFERROR(RANK(#REF!,#REF!,1),"") -> 
A49: =IFERROR(RANK(#REF!,#REF!,1),"") -> 
A50: =IFERROR(RANK(#REF!,#REF!,1),"") -> 
A51: =IFERROR(RANK(#REF!,#REF!,1),"") -> 
A52: =IFERROR(RANK(#REF!,#REF!,1),"") -> 
A53: =IFERROR(RANK(#REF!,#REF!,1),"") -> 
A54: =IFERROR(RANK(#REF!,#REF!,1),"") -> 
A55: =IFERROR(RANK(#REF!,#REF!,1),"") -> 
A56: =IFERROR(RANK(#REF!,#REF!,1),"") -> 
A57: =IFERROR(RANK(#REF!,#REF!,1),"") -> 
A58: =IFERROR(RANK(#REF!,#REF!,1),"") -> 
A59: =IFERROR(RANK(#REF!,#REF!,1),"") -> 
A60: =IFERROR(RANK(#REF!,#REF!,1),"") -> 
A61: =IFERROR(RANK(#REF!,#REF!,1),"") -> 
A62: =IFERROR(RANK(#REF!,#REF!,1),"") -> 
A63: =IFERROR(RANK(#REF!,#REF!,1),"") -> 
A64: =IFERROR(RANK(#REF!,#REF!,1),"") -> 
A65: =IFERROR(RANK(#REF!,#REF!,1),"") -> 
A66: =IFERROR(RANK(#REF!,#REF!,1),"") -> 
A67: =IFERROR(RANK(#REF!,#REF!,1),"") -> 
A68: =IFERROR(RANK(#REF!,#REF!,1),"") -> 
A69: =IFERROR(RANK(#REF!,#REF!,1),"") -> 
A70: =IFERROR(RANK(#REF!,#REF!,1),"") -> 
A71: =IFERROR(RANK(#REF!,#REF!,1),"") ->  | B71: =IF(AND(C71<>"",D71<>""),B70+1,"") -> 
A72: =IFERROR(RANK(#REF!,#REF!,1),"") -> 
A73: =IFERROR(RANK(#REF!,#REF!,1),"") -> 
A74: =IFERROR(RANK(#REF!,#REF!,1),"") -> 
A75: =IFERROR(RANK(#REF!,#REF!,1),"") -> 
A76: =IFERROR(RANK(#REF!,#REF!,1),"") ->  | E76: =IFERROR(VLOOKUP(D76,OFFSET(cod!$C$6,,,COUNTA(cod!C:C),2),2,0),"") -> استك اصلي
A77: =IFERROR(RANK(#REF!,#REF!,1),"") ->  | E77: =IFERROR(VLOOKUP(D77,OFFSET(cod!$C$6,,,COUNTA(cod!C:C),2),2,0),"") -> استك اصلي
A78: =IFERROR(RANK(#REF!,#REF!,1),"") ->  | E78: =IFERROR(VLOOKUP(D78,OFFSET(cod!$C$6,,,COUNTA(cod!C:C),2),2,0),"") -> استك اصلي
A79: =IFERROR(RANK(#REF!,#REF!,1),"") ->  | E79: =IFERROR(VLOOKUP(D79,OFFSET(cod!$C$6,,,COUNTA(cod!C:C),2),2,0),"") -> استك اصلي
A80: =IFERROR(RANK(#REF!,#REF!,1),"") ->  | E80: =IFERROR(VLOOKUP(D80,OFFSET(cod!$C$6,,,COUNTA(cod!C:C),2),2,0),"") -> استك اصلي
A81: =IFERROR(RANK(#REF!,#REF!,1),"") ->  | E81: =IFERROR(VLOOKUP(D81,OFFSET(cod!$C$6,,,COUNTA(cod!C:C),2),2,0),"") -> استك اصلي
A82: =IFERROR(RANK(#REF!,#REF!,1),"") ->  | E82: =IFERROR(VLOOKUP(D82,OFFSET(cod!$C$6,,,COUNTA(cod!C:C),2),2,0),"") -> استك اصلي
A83: =IFERROR(RANK(#REF!,#REF!,1),"") ->  | E83: =IFERROR(VLOOKUP(D83,OFFSET(cod!$C$6,,,COUNTA(cod!C:C),2),2,0),"") -> استك اصلي
A84: =IFERROR(RANK(#REF!,#REF!,1),"") ->  | E84: =IFERROR(VLOOKUP(D84,OFFSET(cod!$C$6,,,COUNTA(cod!C:C),2),2,0),"") -> استك اصلي
A85: =IFERROR(RANK(#REF!,#REF!,1),"") ->  | E85: =IFERROR(VLOOKUP(D85,OFFSET(cod!$C$6,,,COUNTA(cod!C:C),2),2,0),"") -> استك اصلي
A86: =IFERROR(RANK(#REF!,#REF!,1),"") ->  | E86: =IFERROR(VLOOKUP(D86,OFFSET(cod!$C$6,,,COUNTA(cod!C:C),2),2,0),"") -> استك اصلي
A87: =IFERROR(RANK(#REF!,#REF!,1),"") ->  | E87: =IFERROR(VLOOKUP(D87,OFFSET(cod!$C$6,,,COUNTA(cod!C:C),2),2,0),"") -> استك اصلي
A88: =IFERROR(RANK(#REF!,#REF!,1),"") ->  | E88: =IFERROR(VLOOKUP(D88,OFFSET(cod!$C$6,,,COUNTA(cod!C:C),2),2,0),"") -> استك اصلي
A89: =IFERROR(RANK(#REF!,#REF!,1),"") ->  | E89: =IFERROR(VLOOKUP(D89,OFFSET(cod!$C$6,,,COUNTA(cod!C:C),2),2,0),"") -> استك اصلي
A90: =IFERROR(RANK(#REF!,#REF!,1),"") ->  | E90: =IFERROR(VLOOKUP(D90,OFFSET(cod!$C$6,,,COUNTA(cod!C:C),2),2,0),"") -> استك اصلي
A91: =IFERROR(RANK(#REF!,#REF!,1),"") ->  | E91: =IFERROR(VLOOKUP(D91,OFFSET(cod!$C$6,,,COUNTA(cod!C:C),2),2,0),"") -> استك اصلي
A92: =IFERROR(RANK(#REF!,#REF!,1),"") ->  | E92: =IFERROR(VLOOKUP(D92,OFFSET(cod!$C$6,,,COUNTA(cod!C:C),2),2,0),"") -> استك اصلي
A93: =IFERROR(RANK(#REF!,#REF!,1),"") ->  | E93: =IFERROR(VLOOKUP(D93,OFFSET(cod!$C$6,,,COUNTA(cod!C:C),2),2,0),"") -> استك اصلي
A94: =IFERROR(RANK(#REF!,#REF!,1),"") ->  | E94: =IFERROR(VLOOKUP(D94,OFFSET(cod!$C$6,,,COUNTA(cod!C:C),2),2,0),"") -> استك اصلي
A95: =IFERROR(RANK(#REF!,#REF!,1),"") ->  | E95: =IFERROR(VLOOKUP(D95,OFFSET(cod!$C$6,,,COUNTA(cod!C:C),2),2,0),"") -> استك اصلي
A96: =IFERROR(RANK(#REF!,#REF!,1),"") ->  | E96: =IFERROR(VLOOKUP(D96,OFFSET(cod!$C$6,,,COUNTA(cod!C:C),2),2,0),"") -> استك اصلي
A97: =IFERROR(RANK(#REF!,#REF!,1),"") ->  | E97: =IFERROR(VLOOKUP(D97,OFFSET(cod!$C$6,,,COUNTA(cod!C:C),2),2,0),"") -> استك اصلي
A98: =IFERROR(RANK(#REF!,#REF!,1),"") ->  | E98: =IFERROR(VLOOKUP(D98,OFFSET(cod!$C$6,,,COUNTA(cod!C:C),2),2,0),"") -> استك اصلي
A99: =IFERROR(RANK(#REF!,#REF!,1),"") ->  | E99: =IFERROR(VLOOKUP(D99,OFFSET(cod!$C$6,,,COUNTA(cod!C:C),2),2,0),"") -> استك اصلي
A100: =IFERROR(RANK(#REF!,#REF!,1),"") ->  | E100: =IFERROR(VLOOKUP(D100,OFFSET(cod!$C$6,,,COUNTA(cod!C:C),2),2,0),"") -> استك اصلي
A101: =IFERROR(RANK(#REF!,#REF!,1),"") ->  | E101: =IFERROR(VLOOKUP(D101,OFFSET(cod!$C$6,,,COUNTA(cod!C:C),2),2,0),"") -> استك اصلي
A102: =IFERROR(RANK(#REF!,#REF!,1),"") ->  | E102: =IFERROR(VLOOKUP(D102,OFFSET(cod!$C$6,,,COUNTA(cod!C:C),2),2,0),"") -> استك اصلي
A103: =IFERROR(RANK(#REF!,#REF!,1),"") ->  | E103: =IFERROR(VLOOKUP(D103,OFFSET(cod!$C$6,,,COUNTA(cod!C:C),2),2,0),"") -> استك اصلي
A104: =IFERROR(RANK(#REF!,#REF!,1),"") ->  | E104: =IFERROR(VLOOKUP(D104,OFFSET(cod!$C$6,,,COUNTA(cod!C:C),2),2,0),"") -> استك اصلي
A105: =IFERROR(RANK(#REF!,#REF!,1),"") ->  | E105: =IFERROR(VLOOKUP(D105,OFFSET(cod!$C$6,,,COUNTA(cod!C:C),2),2,0),"") -> استك اصلي
A106: =IFERROR(RANK(#REF!,#REF!,1),"") ->  | E106: =IFERROR(VLOOKUP(D106,OFFSET(cod!$C$6,,,COUNTA(cod!C:C),2),2,0),"") -> استك اصلي
A107: =IFERROR(RANK(#REF!,#REF!,1),"") ->  | E107: =IFERROR(VLOOKUP(D107,OFFSET(cod!$C$6,,,COUNTA(cod!C:C),2),2,0),"") -> استك اصلي
A108: =IFERROR(RANK(#REF!,#REF!,1),"") ->  | E108: =IFERROR(VLOOKUP(D108,OFFSET(cod!$C$6,,,COUNTA(cod!C:C),2),2,0),"") -> استك اصلي
A109: =IFERROR(RANK(#REF!,#REF!,1),"") ->  | E109: =IFERROR(VLOOKUP(D109,OFFSET(cod!$C$6,,,COUNTA(cod!C:C),2),2,0),"") -> استك اصلي
A110: =IFERROR(RANK(#REF!,#REF!,1),"") ->  | E110: =IFERROR(VLOOKUP(D110,OFFSET(cod!$C$6,,,COUNTA(cod!C:C),2),2,0),"") -> استك اصلي
A111: =IFERROR(RANK(#REF!,#REF!,1),"") ->  | E111: =IFERROR(VLOOKUP(D111,OFFSET(cod!$C$6,,,COUNTA(cod!C:C),2),2,0),"") -> استك اصلي
A112: =IFERROR(RANK(#REF!,#REF!,1),"") ->  | E112: =IFERROR(VLOOKUP(D112,OFFSET(cod!$C$6,,,COUNTA(cod!C:C),2),2,0),"") -> استك اصلي
A113: =IFERROR(RANK(#REF!,#REF!,1),"") ->  | E113: =IFERROR(VLOOKUP(D113,OFFSET(cod!$C$6,,,COUNTA(cod!C:C),2),2,0),"") -> استك اصلي
A114: =IFERROR(RANK(#REF!,#REF!,1),"") ->  | E114: =IFERROR(VLOOKUP(D114,OFFSET(cod!$C$6,,,COUNTA(cod!C:C),2),2,0),"") -> استك اصلي
A115: =IFERROR(RANK(#REF!,#REF!,1),"") ->  | E115: =IFERROR(VLOOKUP(D115,OFFSET(cod!$C$6,,,COUNTA(cod!C:C),2),2,0),"") -> استك اصلي
A116: =IFERROR(RANK(#REF!,#REF!,1),"") ->  | E116: =IFERROR(VLOOKUP(D116,OFFSET(cod!$C$6,,,COUNTA(cod!C:C),2),2,0),"") -> استك اصلي
A117: =IFERROR(RANK(#REF!,#REF!,1),"") ->  | E117: =IFERROR(VLOOKUP(D117,OFFSET(cod!$C$6,,,COUNTA(cod!C:C),2),2,0),"") -> استك اصلي
A118: =IFERROR(RANK(#REF!,#REF!,1),"") ->  | E118: =IFERROR(VLOOKUP(D118,OFFSET(cod!$C$6,,,COUNTA(cod!C:C),2),2,0),"") -> استك اصلي
A119: =IFERROR(RANK(#REF!,#REF!,1),"") ->  | E119: =IFERROR(VLOOKUP(D119,OFFSET(cod!$C$6,,,COUNTA(cod!C:C),2),2,0),"") -> استك اصلي
A120: =IFERROR(RANK(#REF!,#REF!,1),"") ->  | E120: =IFERROR(VLOOKUP(D120,OFFSET(cod!$C$6,,,COUNTA(cod!C:C),2),2,0),"") -> استك اصلي
A121: =IFERROR(RANK(#REF!,#REF!,1),"") ->  | E121: =IFERROR(VLOOKUP(D121,OFFSET(cod!$C$6,,,COUNTA(cod!C:C),2),2,0),"") -> استك اصلي
A122: =IFERROR(RANK(#REF!,#REF!,1),"") ->  | E122: =IFERROR(VLOOKUP(D122,OFFSET(cod!$C$6,,,COUNTA(cod!C:C),2),2,0),"") -> استك اصلي
A123: =IFERROR(RANK(#REF!,#REF!,1),"") ->  | E123: =IFERROR(VLOOKUP(D123,OFFSET(cod!$C$6,,,COUNTA(cod!C:C),2),2,0),"") -> استك اصلي
A124: =IFERROR(RANK(#REF!,#REF!,1),"") ->  | E124: =IFERROR(VLOOKUP(D124,OFFSET(cod!$C$6,,,COUNTA(cod!C:C),2),2,0),"") -> استك اصلي
A125: =IFERROR(RANK(#REF!,#REF!,1),"") ->  | E125: =IFERROR(VLOOKUP(D125,OFFSET(cod!$C$6,,,COUNTA(cod!C:C),2),2,0),"") -> استك اصلي
A126: =IFERROR(RANK(#REF!,#REF!,1),"") ->  | E126: =IFERROR(VLOOKUP(D126,OFFSET(cod!$C$6,,,COUNTA(cod!C:C),2),2,0),"") -> استك اصلي
A127: =IFERROR(RANK(#REF!,#REF!,1),"") ->  | E127: =IFERROR(VLOOKUP(D127,OFFSET(cod!$C$6,,,COUNTA(cod!C:C),2),2,0),"") -> استك اصلي
A128: =IFERROR(RANK(#REF!,#REF!,1),"") ->  | E128: =IFERROR(VLOOKUP(D128,OFFSET(cod!$C$6,,,COUNTA(cod!C:C),2),2,0),"") -> استك اصلي
A129: =IFERROR(RANK(#REF!,#REF!,1),"") ->  | E129: =IFERROR(VLOOKUP(D129,OFFSET(cod!$C$6,,,COUNTA(cod!C:C),2),2,0),"") -> استك اصلي
A130: =IFERROR(RANK(#REF!,#REF!,1),"") ->  | E130: =IFERROR(VLOOKUP(D130,OFFSET(cod!$C$6,,,COUNTA(cod!C:C),2),2,0),"") -> استك اصلي
A131: =IFERROR(RANK(#REF!,#REF!,1),"") ->  | E131: =IFERROR(VLOOKUP(D131,OFFSET(cod!$C$6,,,COUNTA(cod!C:C),2),2,0),"") -> استك اصلي
A132: =IFERROR(RANK(#REF!,#REF!,1),"") ->  | E132: =IFERROR(VLOOKUP(D132,OFFSET(cod!$C$6,,,COUNTA(cod!C:C),2),2,0),"") -> استك اصلي
A133: =IFERROR(RANK(#REF!,#REF!,1),"") ->  | E133: =IFERROR(VLOOKUP(D133,OFFSET(cod!$C$6,,,COUNTA(cod!C:C),2),2,0),"") -> استك اصلي
A134: =IFERROR(RANK(#REF!,#REF!,1),"") ->  | E134: =IFERROR(VLOOKUP(D134,OFFSET(cod!$C$6,,,COUNTA(cod!C:C),2),2,0),"") -> استك اصلي
A135: =IFERROR(RANK(#REF!,#REF!,1),"") ->  | B135: =IF(AND(C135<>"",D135<>""),B134+1,"") ->  | E135: =IFERROR(VLOOKUP(D135,OFFSET(cod!$C$6,,,COUNTA(cod!C:C),2),2,0),"") -> استك اصلي
A136: =IFERROR(RANK(#REF!,#REF!,1),"") ->  | E136: =IFERROR(VLOOKUP(D136,OFFSET(cod!$C$6,,,COUNTA(cod!C:C),2),2,0),"") -> استك اصلي
A137: =IFERROR(RANK(#REF!,#REF!,1),"") ->  | E137: =IFERROR(VLOOKUP(D137,OFFSET(cod!$C$6,,,COUNTA(cod!C:C),2),2,0),"") -> استك اصلي
A138: =IFERROR(RANK(#REF!,#REF!,1),"") ->  | E138: =IFERROR(VLOOKUP(D138,OFFSET(cod!$C$6,,,COUNTA(cod!C:C),2),2,0),"") -> استك اصلي
A139: =IFERROR(RANK(#REF!,#REF!,1),"") ->  | E139: =IFERROR(VLOOKUP(D139,OFFSET(cod!$C$6,,,COUNTA(cod!C:C),2),2,0),"") -> استك اصلي
A140: =IFERROR(RANK(#REF!,#REF!,1),"") ->  | E140: =IFERROR(VLOOKUP(D140,OFFSET(cod!$C$6,,,COUNTA(cod!C:C),2),2,0),"") -> استك اصلي
A141: =IFERROR(RANK(#REF!,#REF!,1),"") ->  | E141: =IFERROR(VLOOKUP(D141,OFFSET(cod!$C$6,,,COUNTA(cod!C:C),2),2,0),"") -> استك اصلي
A142: =IFERROR(RANK(#REF!,#REF!,1),"") ->  | E142: =IFERROR(VLOOKUP(D142,OFFSET(cod!$C$6,,,COUNTA(cod!C:C),2),2,0),"") -> استك اصلي
A143: =IFERROR(RANK(#REF!,#REF!,1),"") ->  | E143: =IFERROR(VLOOKUP(D143,OFFSET(cod!$C$6,,,COUNTA(cod!C:C),2),2,0),"") -> استك اصلي
A144: =IFERROR(RANK(#REF!,#REF!,1),"") ->  | E144: =IFERROR(VLOOKUP(D144,OFFSET(cod!$C$6,,,COUNTA(cod!C:C),2),2,0),"") -> استك اصلي
A145: =IFERROR(RANK(#REF!,#REF!,1),"") ->  | E145: =IFERROR(VLOOKUP(D145,OFFSET(cod!$C$6,,,COUNTA(cod!C:C),2),2,0),"") -> استك اصلي
A146: =IFERROR(RANK(#REF!,#REF!,1),"") ->  | E146: =IFERROR(VLOOKUP(D146,OFFSET(cod!$C$6,,,COUNTA(cod!C:C),2),2,0),"") -> استك اصلي
A147: =IFERROR(RANK(#REF!,#REF!,1),"") ->  | E147: =IFERROR(VLOOKUP(D147,OFFSET(cod!$C$6,,,COUNTA(cod!C:C),2),2,0),"") -> استك اصلي
A148: =IFERROR(RANK(#REF!,#REF!,1),"") ->  | E148: =IFERROR(VLOOKUP(D148,OFFSET(cod!$C$6,,,COUNTA(cod!C:C),2),2,0),"") -> استك اصلي
A149: =IFERROR(RANK(#REF!,#REF!,1),"") ->  | E149: =IFERROR(VLOOKUP(D149,OFFSET(cod!$C$6,,,COUNTA(cod!C:C),2),2,0),"") -> استك اصلي
A150: =IFERROR(RANK(#REF!,#REF!,1),"") ->  | E150: =IFERROR(VLOOKUP(D150,OFFSET(cod!$C$6,,,COUNTA(cod!C:C),2),2,0),"") -> استك اصلي
A151: =IFERROR(RANK(#REF!,#REF!,1),"") ->  | E151: =IFERROR(VLOOKUP(D151,OFFSET(cod!$C$6,,,COUNTA(cod!C:C),2),2,0),"") -> استك اصلي
A152: =IFERROR(RANK(#REF!,#REF!,1),"") ->  | E152: =IFERROR(VLOOKUP(D152,OFFSET(cod!$C$6,,,COUNTA(cod!C:C),2),2,0),"") -> استك اصلي
A153: =IFERROR(RANK(#REF!,#REF!,1),"") ->  | E153: =IFERROR(VLOOKUP(D153,OFFSET(cod!$C$6,,,COUNTA(cod!C:C),2),2,0),"") -> استك اصلي
A154: =IFERROR(RANK(#REF!,#REF!,1),"") ->  | E154: =IFERROR(VLOOKUP(D154,OFFSET(cod!$C$6,,,COUNTA(cod!C:C),2),2,0),"") -> استك اصلي
A155: =IFERROR(RANK(#REF!,#REF!,1),"") ->  | E155: =IFERROR(VLOOKUP(D155,OFFSET(cod!$C$6,,,COUNTA(cod!C:C),2),2,0),"") -> استك اصلي
A156: =IFERROR(RANK(#REF!,#REF!,1),"") ->  | E156: =IFERROR(VLOOKUP(D156,OFFSET(cod!$C$6,,,COUNTA(cod!C:C),2),2,0),"") -> استك اصلي
A157: =IFERROR(RANK(#REF!,#REF!,1),"") ->  | E157: =IFERROR(VLOOKUP(D157,OFFSET(cod!$C$6,,,COUNTA(cod!C:C),2),2,0),"") -> استك اصلي
A158: =IFERROR(RANK(#REF!,#REF!,1),"") ->  | E158: =IFERROR(VLOOKUP(D158,OFFSET(cod!$C$6,,,COUNTA(cod!C:C),2),2,0),"") -> استك اصلي
A159: =IFERROR(RANK(#REF!,#REF!,1),"") ->  | E159: =IFERROR(VLOOKUP(D159,OFFSET(cod!$C$6,,,COUNTA(cod!C:C),2),2,0),"") -> استك اصلي
A160: =IFERROR(RANK(#REF!,#REF!,1),"") ->  | E160: =IFERROR(VLOOKUP(D160,OFFSET(cod!$C$6,,,COUNTA(cod!C:C),2),2,0),"") -> استك اصلي
A161: =IFERROR(RANK(#REF!,#REF!,1),"") ->  | E161: =IFERROR(VLOOKUP(D161,OFFSET(cod!$C$6,,,COUNTA(cod!C:C),2),2,0),"") -> استك اصلي
A162: =IFERROR(RANK(#REF!,#REF!,1),"") ->  | E162: =IFERROR(VLOOKUP(D162,OFFSET(cod!$C$6,,,COUNTA(cod!C:C),2),2,0),"") -> استك اصلي
A163: =IFERROR(RANK(#REF!,#REF!,1),"") ->  | E163: =IFERROR(VLOOKUP(D163,OFFSET(cod!$C$6,,,COUNTA(cod!C:C),2),2,0),"") -> استك اصلي
A164: =IFERROR(RANK(#REF!,#REF!,1),"") ->  | E164: =IFERROR(VLOOKUP(D164,OFFSET(cod!$C$6,,,COUNTA(cod!C:C),2),2,0),"") -> استك اصلي
A165: =IFERROR(RANK(#REF!,#REF!,1),"") ->  | E165: =IFERROR(VLOOKUP(D165,OFFSET(cod!$C$6,,,COUNTA(cod!C:C),2),2,0),"") -> استك اصلي
A166: =IFERROR(RANK(#REF!,#REF!,1),"") ->  | E166: =IFERROR(VLOOKUP(D166,OFFSET(cod!$C$6,,,COUNTA(cod!C:C),2),2,0),"") -> استك اصلي
A167: =IFERROR(RANK(#REF!,#REF!,1),"") ->  | E167: =IFERROR(VLOOKUP(D167,OFFSET(cod!$C$6,,,COUNTA(cod!C:C),2),2,0),"") -> استك اصلي
A168: =IFERROR(RANK(#REF!,#REF!,1),"") ->  | E168: =IFERROR(VLOOKUP(D168,OFFSET(cod!$C$6,,,COUNTA(cod!C:C),2),2,0),"") -> استك اصلي
A169: =IFERROR(RANK(#REF!,#REF!,1),"") ->  | E169: =IFERROR(VLOOKUP(D169,OFFSET(cod!$C$6,,,COUNTA(cod!C:C),2),2,0),"") -> استك اصلي
A170: =IFERROR(RANK(#REF!,#REF!,1),"") ->  | E170: =IFERROR(VLOOKUP(D170,OFFSET(cod!$C$6,,,COUNTA(cod!C:C),2),2,0),"") -> استك اصلي
A171: =IFERROR(RANK(#REF!,#REF!,1),"") ->  | E171: =IFERROR(VLOOKUP(D171,OFFSET(cod!$C$6,,,COUNTA(cod!C:C),2),2,0),"") -> استك اصلي
A172: =IFERROR(RANK(#REF!,#REF!,1),"") ->  | E172: =IFERROR(VLOOKUP(D172,OFFSET(cod!$C$6,,,COUNTA(cod!C:C),2),2,0),"") -> استك اصلي
A173: =IFERROR(RANK(#REF!,#REF!,1),"") ->  | E173: =IFERROR(VLOOKUP(D173,OFFSET(cod!$C$6,,,COUNTA(cod!C:C),2),2,0),"") -> استك اصلي
A174: =IFERROR(RANK(#REF!,#REF!,1),"") ->  | E174: =IFERROR(VLOOKUP(D174,OFFSET(cod!$C$6,,,COUNTA(cod!C:C),2),2,0),"") -> استك اصلي
A175: =IFERROR(RANK(#REF!,#REF!,1),"") ->  | E175: =IFERROR(VLOOKUP(D175,OFFSET(cod!$C$6,,,COUNTA(cod!C:C),2),2,0),"") -> استك اصلي
A176: =IFERROR(RANK(#REF!,#REF!,1),"") ->  | E176: =IFERROR(VLOOKUP(D176,OFFSET(cod!$C$6,,,COUNTA(cod!C:C),2),2,0),"") -> استك اصلي
A177: =IFERROR(RANK(#REF!,#REF!,1),"") ->  | E177: =IFERROR(VLOOKUP(D177,OFFSET(cod!$C$6,,,COUNTA(cod!C:C),2),2,0),"") -> استك اصلي
A178: =IFERROR(RANK(#REF!,#REF!,1),"") ->  | E178: =IFERROR(VLOOKUP(D178,OFFSET(cod!$C$6,,,COUNTA(cod!C:C),2),2,0),"") -> استك اصلي
A179: =IFERROR(RANK(#REF!,#REF!,1),"") ->  | E179: =IFERROR(VLOOKUP(D179,OFFSET(cod!$C$6,,,COUNTA(cod!C:C),2),2,0),"") -> استك اصلي
A180: =IFERROR(RANK(#REF!,#REF!,1),"") ->  | E180: =IFERROR(VLOOKUP(D180,OFFSET(cod!$C$6,,,COUNTA(cod!C:C),2),2,0),"") -> استك اصلي
A181: =IFERROR(RANK(#REF!,#REF!,1),"") ->  | E181: =IFERROR(VLOOKUP(D181,OFFSET(cod!$C$6,,,COUNTA(cod!C:C),2),2,0),"") -> استك اصلي
A182: =IFERROR(RANK(#REF!,#REF!,1),"") ->  | E182: =IFERROR(VLOOKUP(D182,OFFSET(cod!$C$6,,,COUNTA(cod!C:C),2),2,0),"") -> استك اصلي
A183: =IFERROR(RANK(#REF!,#REF!,1),"") ->  | E183: =IFERROR(VLOOKUP(D183,OFFSET(cod!$C$6,,,COUNTA(cod!C:C),2),2,0),"") -> استك اصلي
A184: =IFERROR(RANK(#REF!,#REF!,1),"") ->  | E184: =IFERROR(VLOOKUP(D184,OFFSET(cod!$C$6,,,COUNTA(cod!C:C),2),2,0),"") -> استك اصلي
A185: =IFERROR(RANK(#REF!,#REF!,1),"") ->  | E185: =IFERROR(VLOOKUP(D185,OFFSET(cod!$C$6,,,COUNTA(cod!C:C),2),2,0),"") -> استك اصلي
A186: =IFERROR(RANK(#REF!,#REF!,1),"") ->  | E186: =IFERROR(VLOOKUP(D186,OFFSET(cod!$C$6,,,COUNTA(cod!C:C),2),2,0),"") -> استك اصلي
A187: =IFERROR(RANK(#REF!,#REF!,1),"") ->  | E187: =IFERROR(VLOOKUP(D187,OFFSET(cod!$C$6,,,COUNTA(cod!C:C),2),2,0),"") -> استك اصلي
A188: =IFERROR(RANK(#REF!,#REF!,1),"") ->  | E188: =IFERROR(VLOOKUP(D188,OFFSET(cod!$C$6,,,COUNTA(cod!C:C),2),2,0),"") -> استك اصلي
A189: =IFERROR(RANK(#REF!,#REF!,1),"") ->  | E189: =IFERROR(VLOOKUP(D189,OFFSET(cod!$C$6,,,COUNTA(cod!C:C),2),2,0),"") -> استك اصلي
A190: =IFERROR(RANK(#REF!,#REF!,1),"") ->  | E190: =IFERROR(VLOOKUP(D190,OFFSET(cod!$C$6,,,COUNTA(cod!C:C),2),2,0),"") -> استك اصلي
A191: =IFERROR(RANK(#REF!,#REF!,1),"") ->  | E191: =IFERROR(VLOOKUP(D191,OFFSET(cod!$C$6,,,COUNTA(cod!C:C),2),2,0),"") -> استك اصلي
A192: =IFERROR(RANK(#REF!,#REF!,1),"") ->  | E192: =IFERROR(VLOOKUP(D192,OFFSET(cod!$C$6,,,COUNTA(cod!C:C),2),2,0),"") -> استك اصلي
A193: =IFERROR(RANK(#REF!,#REF!,1),"") ->  | E193: =IFERROR(VLOOKUP(D193,OFFSET(cod!$C$6,,,COUNTA(cod!C:C),2),2,0),"") -> استك اصلي
A194: =IFERROR(RANK(#REF!,#REF!,1),"") ->  | E194: =IFERROR(VLOOKUP(D194,OFFSET(cod!$C$6,,,COUNTA(cod!C:C),2),2,0),"") -> استك اصلي
A195: =IFERROR(RANK(#REF!,#REF!,1),"") ->  | E195: =IFERROR(VLOOKUP(D195,OFFSET(cod!$C$6,,,COUNTA(cod!C:C),2),2,0),"") -> استك اصلي
A196: =IFERROR(RANK(#REF!,#REF!,1),"") ->  | E196: =IFERROR(VLOOKUP(D196,OFFSET(cod!$C$6,,,COUNTA(cod!C:C),2),2,0),"") -> استك اصلي
A197: =IFERROR(RANK(#REF!,#REF!,1),"") ->  | E197: =IFERROR(VLOOKUP(D197,OFFSET(cod!$C$6,,,COUNTA(cod!C:C),2),2,0),"") -> استك اصلي
A198: =IFERROR(RANK(#REF!,#REF!,1),"") ->  | E198: =IFERROR(VLOOKUP(D198,OFFSET(cod!$C$6,,,COUNTA(cod!C:C),2),2,0),"") -> استك اصلي
A199: =IFERROR(RANK(#REF!,#REF!,1),"") ->  | B199: =IF(AND(C199<>"",D199<>""),B198+1,"") ->  | E199: =IFERROR(VLOOKUP(D199,OFFSET(cod!$C$6,,,COUNTA(cod!C:C),2),2,0),"") -> استك اصلي
A200: =IFERROR(RANK(#REF!,#REF!,1),"") ->  | E200: =IFERROR(VLOOKUP(D200,OFFSET(cod!$C$6,,,COUNTA(cod!C:C),2),2,0),"") -> استك اصلي
A201: =IFERROR(RANK(#REF!,#REF!,1),"") ->  | E201: =IFERROR(VLOOKUP(D201,OFFSET(cod!$C$6,,,COUNTA(cod!C:C),2),2,0),"") -> استك اصلي
A202: =IFERROR(RANK(#REF!,#REF!,1),"") ->  | E202: =IFERROR(VLOOKUP(D202,OFFSET(cod!$C$6,,,COUNTA(cod!C:C),2),2,0),"") -> استك اصلي
A203: =IFERROR(RANK(#REF!,#REF!,1),"") ->  | E203: =IFERROR(VLOOKUP(D203,OFFSET(cod!$C$6,,,COUNTA(cod!C:C),2),2,0),"") -> استك اصلي
... 347 more rows

Sheet inv_c
A2: الوحدة | C2: رقم الصنف | D2: 15057 | G2: رصيد اول المدة
C3: اسم الصنف | D3: زيت ماتور اكس لوب - 16لتر | G3: 10
A5: م | B5: التاريخ | C5: رقم الاذن | D5: وارد | E5: منصرف | F5: رصيد متاح | G5: مخزن الاضافة

Sheet stor_rob
B2: من تاريخ | C2: 2021-07-01 | D2: تقرير حركة المخزن | G2: اسم المخزن
B3: الى تاريخ | C3: 2021-07-30 | G3: رئيسي
A6: 1 | B6: التاريخ | C6: كود الصنف | D6: اسم الصنف | E6: وارد | F6: منصرف | G6: الرصيد المتاح

Sheet item_inv
C1: تقرير جرد الاصناف
B5: م | C5: كود الصنف | D5: اسم الصنف | E5: رصيد اول المدة | F5: وارد | G5: منصرف | H5: رصيد اخر المدة

Sheet cod
C1: شاشة اكواد الاصناف | I1: اسماء المخازن
I2: رئيسي
I3: موقع العين السخنة
I4: السادات اسفلت
B5: م | C5: كود الصنف | D5: اسم الصنف | E5: الوحدة | F5: رصيد اول المدة | G5: ملاحظات | I5: السادات خرسانة
B6: =IF(D6<>"",MAX($B$5:B5)+1,"") -> 1 | C6: 4320221 | D6: قاعدة عمة مقاس مسمار -10 - فرنساوى | I6: الواحات
B7: =IF(D7<>"",MAX($B$5:B6)+1,"") -> 2 | C7: 4320222 | D7: قاعدة عمة - فرنساوى | I7: طريق اكتوبر
B8: =IF(D8<>"",MAX($B$5:B7)+1,"") -> 3 | C8: 5004181 | D8: plasticser ROCK -G X | I8: خلاطة اكتوبر امان
B9: =IF(D9<>"",MAX($B$5:B8)+1,"") -> 4 | C9: 3918478 | D9: مسمار كونتر + وردة + سوستة 12 مملى | I9: موقع العاصمة الادارية مرابض
B10: =IF(D10<>"",MAX($B$5:B9)+1,"") -> 5 | C10: 4319810 | D10: لفة صوف 1بوصة 24كجم
B11: =IF(D11<>"",MAX($B$5:B10)+1,"") -> 6 | C11: 15086 | D11: زيت SHELL الاحمر - 4 لتر - 3000 كم
B12: =IF(D12<>"",MAX($B$5:B11)+1,"") -> 7 | C12: 1001 | D12: رمل
B13: =IF(D13<>"",MAX($B$5:B12)+1,"") -> 8 | C13: 1002 | D13: سن 6
B14: =IF(D14<>"",MAX($B$5:B13)+1,"") -> 9 | C14: 1000 | D14: سن 1
B15: =IF(D15<>"",MAX($B$5:B14)+1,"") -> 10 | C15: 1004 | D15: توريد مياه فقط
B16: =IF(D16<>"",MAX($B$5:B15)+1,"") -> 11 | C16: 15017 | D16: زيت تروس
B17: =IF(D17<>"",MAX($B$5:B16)+1,"") -> 12 | C17: 15016 | D17: زيت فتيس كاتر بلر 50
B18: =IF(D18<>"",MAX($B$5:B17)+1,"") -> 13 | C18: 15011 | D18: زيت تسخين 100 ( محطات الاسفلت ) 0
B19: =IF(D19<>"",MAX($B$5:B18)+1,"") -> 14 | C19: 15025 | D19: زيت MX 15-40 دلفاك
B20: =IF(D20<>"",MAX($B$5:B19)+1,"") -> 15 | C20: 15014 | D20: زيت موبيل دلفاك shc-5 w 40.-
B21: =IF(D21<>"",MAX($B$5:B20)+1,"") -> 16 | C21: 15000 | D21: زيت هيدروليك 68
B22: =IF(D22<>"",MAX($B$5:B21)+1,"") -> 17 | C22: 15010 | D22: زيت HYPA
B23: =IF(D23<>"",MAX($B$5:B22)+1,"") -> 18 | C23: 15112 | D23: جركن شيل اسود 20w50
B24: =IF(D24<>"",MAX($B$5:B23)+1,"") -> 19 | C24: 15119 | D24: زيت موبيل 2000
B25: =IF(D25<>"",MAX($B$5:B24)+1,"") -> 20 | C25: 15100 | D25: زيت شنبر
B26: =IF(D26<>"",MAX($B$5:B25)+1,"") -> 21 | C26: 15101 | D26: زيت فالفينا 80W90 - الجركن 4 لتر
B27: =IF(D27<>"",MAX($B$5:B26)+1,"") -> 22 | C27: 15102 | D27: زيت فالفلينا تروس 140
B28: =IF(D28<>"",MAX($B$5:B27)+1,"") -> 23 | C28: 15107 | D28: زيت هيدروليك توتال - AZOLLA ZS - الجركن 16 لتر
B29: =IF(D29<>"",MAX($B$5:B28)+1,"") -> 24 | C29: 15108 | D29: زيت تعاون 50
B30: =IF(D30<>"",MAX($B$5:B29)+1,"") -> 25 | C30: 15081 | D30: زيت تروس تعاون HP 140 - الجركن 3 لتر
B31: =IF(D31<>"",MAX($B$5:B30)+1,"") -> 26 | C31: 15085 | D31: زيت موبيل سوبر 1000 XHP - الجركن 4 لتر
B32: =IF(D32<>"",MAX($B$5:B31)+1,"") -> 27 | C32: 15093 | D32: زيت موبيل 20W40 - مطلوب فحصة - الجركن 4 لتر
B33: =IF(D33<>"",MAX($B$5:B32)+1,"") -> 28 | C33: 15094 | D33: زيت موبيل سوبر 5000
B34: =IF(D34<>"",MAX($B$5:B33)+1,"") -> 29 | C34: 15095 | D34: زيت موبيل سوبر 1000 - الجركن 5لتر
B35: =IF(D35<>"",MAX($B$5:B34)+1,"") -> 30 | C35: 15096 | D35: زيت شل 5000 - الجركن 4 لتر
B36: =IF(D36<>"",MAX($B$5:B35)+1,"") -> 31 | C36: 15003 | D36: زيت باور جانك 1 كجم
B37: =IF(D37<>"",MAX($B$5:B36)+1,"") -> 32 | C37: 15004 | D37: زيت باور عادى 1 كجم
B38: =IF(D38<>"",MAX($B$5:B37)+1,"") -> 33 | C38: 15005 | D38: زيت دبرياج مرسيدس 1 كجم
B39: =IF(D39<>"",MAX($B$5:B38)+1,"") -> 34 | C39: 15006 | D39: زيت تروس 90W80 -بترومين
B40: =IF(D40<>"",MAX($B$5:B39)+1,"") -> 35 | C40: 15008 | D40: زيت MX 15-40 دلفاك جركن 20لتر
B41: =IF(D41<>"",MAX($B$5:B40)+1,"") -> 36 | C41: 15009 | D41: زيت رمادى SHC( 20 كجم )
B42: =IF(D42<>"",MAX($B$5:B41)+1,"") -> 37 | C42: 15028 | D42: زيت موبيل سوبر 1000 super
B43: =IF(D43<>"",MAX($B$5:B42)+1,"") -> 38 | C43: 15033 | D43: زيت تروس 90W80 فلفلينه رولتكس 140- 85 درجه
B44: =IF(D44<>"",MAX($B$5:B43)+1,"") -> 39 | C44: 15034 | D44: زيت جير بوكس SHC630
B45: =IF(D45<>"",MAX($B$5:B44)+1,"") -> 40 | C45: 15040 | D45: زيت ماتور مانتراك DE0(15W-40)0
B46: =IF(D46<>"",MAX($B$5:B45)+1,"") -> 41 | C46: 15035 | D46: زيت فتيس TDT050
B47: =IF(D47<>"",MAX($B$5:B46)+1,"") -> 42 | C47: 15045 | D47: زيت هيدروليك 68 -جركن 16لتر
B48: =IF(D48<>"",MAX($B$5:B47)+1,"") -> 43 | C48: 15046 | D48: زيت هيدروليك 68 ممتاز
B49: =IF(D49<>"",MAX($B$5:B48)+1,"") -> 44 | C49: 15018 | D49: زيت ديلو فضي ( 20w 50 اسبيشيال )
B50: =IF(D50<>"",MAX($B$5:B49)+1,"") -> 45 | C50: 15023 | D50: زيت باكم فرامل
B51: =IF(D51<>"",MAX($B$5:B50)+1,"") -> 46 | C51: 15026 | D51: زيت هيدروليك تعاون
B52: =IF(D52<>"",MAX($B$5:B51)+1,"") -> 47 | C52: 15027 | D52: زيت تعاون فاكت
B53: =IF(D53<>"",MAX($B$5:B52)+1,"") -> 48 | C53: 15066 | D53: زيت سوبر ستان N20 - تعاون
B54: =IF(D54<>"",MAX($B$5:B53)+1,"") -> 49 | C54: 15061 | D54: زيت موبيل دلفاك تروس 1350 - SAE
B55: =IF(D55<>"",MAX($B$5:B54)+1,"") -> 50 | C55: 15059 | D55: زيت موبيل دلفاك 1350
B56: =IF(D56<>"",MAX($B$5:B55)+1,"") -> 51 | C56: 15060 | D56: زيت باكم - روسى 2/1 لتر
B57: =IF(D57<>"",MAX($B$5:B56)+1,"") -> 52 | C57: 15048 | D57: زيت هيدروليك - 16 لتر
B58: =IF(D58<>"",MAX($B$5:B57)+1,"") -> 53 | C58: 15049 | D58: زيت 15W40 - جركن 5 لتر
B59: =IF(D59<>"",MAX($B$5:B58)+1,"") -> 54 | C59: 15050 | D59: زيت عصاية فتيس - المانى
B60: =IF(D60<>"",MAX($B$5:B59)+1,"") -> 55 | C60: 15052 | D60: زيت توتال -10000
B61: =IF(D61<>"",MAX($B$5:B60)+1,"") -> 56 | C61: 15053 | D61: زيت فتيس اوتوماتك
B62: =IF(D62<>"",MAX($B$5:B61)+1,"") -> 57 | C62: 15077 | D62: زيت موبيل دلفاك MX 20W50 - الجركن 5 لتر
B63: =IF(D63<>"",MAX($B$5:B62)+1,"") -> 58 | C63: 15078 | D63: زيت موبيل دلفاك MX 20W50 - علبة 1 لتر
B64: =IF(D64<>"",MAX($B$5:B63)+1,"") -> 59 | C64: 15079 | D64: زيت موبيل XHP - الجركن 5 لتر
B65: =IF(D65<>"",MAX($B$5:B64)+1,"") -> 60 | C65: 15080 | D65: زيت هيدروليك - مستعمل ( مرتجع من المعدات )
B66: =IF(D66<>"",MAX($B$5:B65)+1,"") -> 61 | C66: 15089 | D66: زيت فرامل بندكس المنار ازرق - 400 مملى
B67: =IF(D67<>"",MAX($B$5:B66)+1,"") -> 62 | C67: 15090 | D67: زيت باور موبيل 220 - 1 لتر
B68: =IF(D68<>"",MAX($B$5:B67)+1,"") -> 63 | C68: 15087 | D68: زيت SHEL الاحمر - 300 كم - الجركن 4 لتر
B69: =IF(D69<>"",MAX($B$5:B68)+1,"") -> 64 | C69: 15091 | D69: زيت موبيل MX - زيت سائب
B70: =IF(D70<>"",MAX($B$5:B69)+1,"") -> 65 | C70: 15092 | D70: زيت موبيل MX 20W50 - الجركن 6 لتر
B71: =IF(D71<>"",MAX($B$5:B70)+1,"") -> 66 | C71: 15097 | D71: زيت موبيل سوبر 3000
B72: =IF(D72<>"",MAX($B$5:B71)+1,"") -> 67 | C72: 15098 | D72: زيت تعاون 15W50 ( بنزين ) - سائب
B73: =IF(D73<>"",MAX($B$5:B72)+1,"") -> 68 | C73: 15099 | D73: زيت هيدروليك 68 موبيل DTE26
B74: =IF(D74<>"",MAX($B$5:B73)+1,"") -> 69 | C74: 15103 | D74: زيت تروس درجة 90 - فلفلينا - موبيل - الجركن 4 لتر
B75: =IF(D75<>"",MAX($B$5:B74)+1,"") -> 70 | C75: 15104 | D75: زيت ماتور مصر وان - جركن 4 لتر
B76: =IF(D76<>"",MAX($B$5:B75)+1,"") -> 71 | C76: 15105 | D76: زيت بترومين ديزل - الجركن 5 لتر
B77: =IF(D77<>"",MAX($B$5:B76)+1,"") -> 72 | C77: 15106 | D77: زيت كلاتش - تايلاندى - انبوبة
B78: =IF(D78<>"",MAX($B$5:B77)+1,"") -> 73 | C78: 15109 | D78: زيت شل 3000 كيلو -الجركن 5 لتر
B79: =IF(D79<>"",MAX($B$5:B78)+1,"") -> 74 | C79: 15067 | D79: زيت سوبر ستان 50 - تعاون - الجركن 16 لتر
B80: =IF(D80<>"",MAX($B$5:B79)+1,"") -> 75 | C80: 15068 | D80: زيت هيدروليك - جركن 20 لتر
B81: =IF(D81<>"",MAX($B$5:B80)+1,"") -> 76 | C81: 15065 | D81: زيت ت ع- جركن 5 كيلو
B82: =IF(D82<>"",MAX($B$5:B81)+1,"") -> 77 | C82: 15069 | D82: زيت تعاون هيدروليك - جركن 6 لتر
B83: =IF(D83<>"",MAX($B$5:B82)+1,"") -> 78 | C83: 15070 | D83: زيت موبيل 15W50 - الجركن 4 لتر
B84: =IF(D84<>"",MAX($B$5:B83)+1,"") -> 79 | C84: 15071 | D84: زيت موبيل 1000 20W50 - علبة 1 لتر
B85: =IF(D85<>"",MAX($B$5:B84)+1,"") -> 80 | C85: 15072 | D85: زيت ديلو - 5 لتر
B86: =IF(D86<>"",MAX($B$5:B85)+1,"") -> 81 | C86: 15073 | D86: زيت موبيل MX50 - جركن 5 لتر
B87: =IF(D87<>"",MAX($B$5:B86)+1,"") -> 82 | C87: 15074 | D87: زيت موبيل MX 20 - الجركن 5 لتر
B88: =IF(D88<>"",MAX($B$5:B87)+1,"") -> 83 | C88: 15075 | D88: زيت موبيل MX (15-40 ) 0- الجركن 4 لتر
B89: =IF(D89<>"",MAX($B$5:B88)+1,"") -> 84 | C89: 15076 | D89: زيت كالتكس SAE40AP CD/SC
B90: =IF(D90<>"",MAX($B$5:B89)+1,"") -> 85 | C90: 15082 | D90: زيت ماتور تلين s.f - الجركن 4 لتر
B91: =IF(D91<>"",MAX($B$5:B90)+1,"") -> 86 | C91: 15083 | D91: زيت موبيل دلفاك MX 20W50 - الجركن 4 لتر
B92: =IF(D92<>"",MAX($B$5:B91)+1,"") -> 87 | C92: 15084 | D92: زيت باكم - العلبة 400 جم - بندكس - سعودى
B93: =IF(D93<>"",MAX($B$5:B92)+1,"") -> 88 | C93: 15051 | D93: زيت تعاون 20W50 - جركن 5 لتر
B94: =IF(D94<>"",MAX($B$5:B93)+1,"") -> 89 | C94: 15054 | D94: زيت ماتور تعاون 50 - 16 لتر
B95: =IF(D95<>"",MAX($B$5:B94)+1,"") -> 90 | C95: 15055 | D95: زيت فتيس فولفو 97342AT102
B96: =IF(D96<>"",MAX($B$5:B95)+1,"") -> 91 | C96: 15056 | D96: زيت فخده فولفو 97303WB101 (FDA0)0
B97: =IF(D97<>"",MAX($B$5:B96)+1,"") -> 92 | C97: 15057 | D97: زيت ماتور اكس لوب - 16لتر
B98: =IF(D98<>"",MAX($B$5:B97)+1,"") -> 93 | C98: 15058 | D98: زيت ماتور مصر للبترول مخصوص - 5 لتر
B99: =IF(D99<>"",MAX($B$5:B98)+1,"") -> 94 | C99: 15062 | D99: زيت موتور 50تعاون 20لتر
B100: =IF(D100<>"",MAX($B$5:B99)+1,"") -> 95 | C100: 15063 | D100: زيت موتور 50تعاون 4لتر
B101: =IF(D101<>"",MAX($B$5:B100)+1,"") -> 96 | C101: 15064 | D101: زيت باكم - مطلوب فحصه
B102: =IF(D102<>"",MAX($B$5:B101)+1,"") -> 97 | C102: 15047 | D102: زيت توتال W 15 - 40
B103: =IF(D103<>"",MAX($B$5:B102)+1,"") -> 98 | C103: 15031 | D103: زيت كارونه موبيل HD 85W90
B104: =IF(D104<>"",MAX($B$5:B103)+1,"") -> 99 | C104: 15029 | D104: زيت باور جانك( ابيض ) 0
B105: =IF(D105<>"",MAX($B$5:B104)+1,"") -> 100 | C105: 15030 | D105: زيت هيدروليك تي - تي اي 26
B106: =IF(D106<>"",MAX($B$5:B105)+1,"") -> 101 | C106: 15015 | D106: زيت فتيس موبيل HD 80W90
B107: =IF(D107<>"",MAX($B$5:B106)+1,"") -> 102 | C107: 15032 | D107: زيت كارونه موبيل HD 85W90 تروس
B108: =IF(D108<>"",MAX($B$5:B107)+1,"") -> 103 | C108: 15013 | D108: زيت موبيل m x 20 w 50
B109: =IF(D109<>"",MAX($B$5:B108)+1,"") -> 104 | C109: 15110 | D109: زيت ماتور تعاون سوبر ستان - الجركن 4 لتر
B110: =IF(D110<>"",MAX($B$5:B109)+1,"") -> 105 | C110: 15111 | D110: زيت تروس موبيل 140 - جيربوكس - الجركن 4 لتر
B111: =IF(D111<>"",MAX($B$5:B110)+1,"") -> 106 | C111: 15113 | D111: زيت مانتراك TDTO
B112: =IF(D112<>"",MAX($B$5:B111)+1,"") -> 107 | C112: 15114 | D112: زيت فتيس فلفلين 1 لتر
B113: =IF(D113<>"",MAX($B$5:B112)+1,"") -> 108 | C113: 15115 | D113: زيت ماتور 20W50 - جركن 20 لتر
B114: =IF(D114<>"",MAX($B$5:B113)+1,"") -> 109 | C114: 15116 | D114: زيت شل 5000 - الجركن 5 لتر
B115: =IF(D115<>"",MAX($B$5:B114)+1,"") -> 110 | C115: S PSF FCHS | D115: زيت باور ابيض S PSF FCHS
B116: =IF(D116<>"",MAX($B$5:B115)+1,"") -> 111 | C116: 15117 | D116: زيت باكم 500 ملي وطنيه
B117: =IF(D117<>"",MAX($B$5:B116)+1,"") -> 112 | C117: 15118 | D117: زيت ماتور موبيل 3000 - جركن 4 لتر
B118: =IF(D118<>"",MAX($B$5:B117)+1,"") -> 113 | C118: 15001 | D118: زيت 15W- 40 تم الغاء الكود
B119: =IF(D119<>"",MAX($B$5:B118)+1,"") -> 114 | C119: 18003 | D119: شحم الاهلية -ملغي
B120: =IF(D120<>"",MAX($B$5:B119)+1,"") -> 115 | C120: 15013 | D120: زيت موبيل mx 20 w -50 (لاغي)
B121: =IF(D121<>"",MAX($B$5:B120)+1,"") -> 116 | C121: 15007 | D121: زيت mobile 20w50 (من الاكواد الملغية)
B122: =IF(D122<>"",MAX($B$5:B121)+1,"") -> 117 | C122: 18005 | D122: شحم موبيل MP ملغي
B123: =IF(D123<>"",MAX($B$5:B122)+1,"") -> 118 | C123: 15021 | D123: شحم تم الغاء الكود
B124: =IF(D124<>"",MAX($B$5:B123)+1,"") -> 119 | C124: 15019 | D124: زيت MX 15 ملغي
B125: =IF(D125<>"",MAX($B$5:B124)+1,"") -> 120 | C125: 15022 | D125: زيت فتيس TDT50 ملغي
B126: =IF(D126<>"",MAX($B$5:B125)+1,"") -> 121 | C126: 18012 | D126: شحم موبيل MB -ملغي
B127: =IF(D127<>"",MAX($B$5:B126)+1,"") -> 122 | C127: 2 | D127: جركن نفط
B128: =IF(D128<>"",MAX($B$5:B127)+1,"") -> 123 | C128: 1 | D128: سولار
B129: =IF(D129<>"",MAX($B$5:B128)+1,"") -> 124 | C129: 3 | D129: بنزين 92
B130: =IF(D130<>"",MAX($B$5:B129)+1,"") -> 125 | C130: 391852 | D130: بنزين 80
B131: =IF(D131<>"",MAX($B$5:B130)+1,"") -> 126 | C131: 391942 | D131: بنزين 95
B132: =IF(D132<>"",MAX($B$5:B131)+1,"") -> 127 | C132: 18000 | D132: شحم موبيل جريس (اكسون موبيل )
B133: =IF(D133<>"",MAX($B$5:B132)+1,"") -> 128 | C133: 18006 | D133: شحم اسو ISO
B134: =IF(D134<>"",MAX($B$5:B133)+1,"") -> 129 | C134: 18010 | D134: شحم موبيل M
B135: =IF(D135<>"",MAX($B$5:B134)+1,"") -> 130 | C135: 18004 | D135: شحم موبيلكس (شحم متعدد الاغراض ) EP 1
B136: =IF(D136<>"",MAX($B$5:B135)+1,"") -> 131 | C136: 18002 | D136: شحم مصر للبترول
B137: =IF(D137<>"",MAX($B$5:B136)+1,"") -> 132 | C137: 18001 | D137: شحم موبيل MP- بستله
B138: =IF(D138<>"",MAX($B$5:B137)+1,"") -> 133 | C138: 18014 | D138: شحم الاهلية 118 - البستلة 14 كجم ( 13 كجم وزن فعلى )
B139: =IF(D139<>"",MAX($B$5:B138)+1,"") -> 134 | C139: 18017 | D139: شحم جريس -EAGLE - GREASE - علبة 450 جرام
B140: =IF(D140<>"",MAX($B$5:B139)+1,"") -> 135 | C140: 18015 | D140: شحم الاهلية 2/1 كيلو
B141: =IF(D141<>"",MAX($B$5:B140)+1,"") -> 136 | C141: 18016 | D141: شحم بترومين MP3
B142: =IF(D142<>"",MAX($B$5:B141)+1,"") -> 137 | C142: 18013 | D142: شحم موبيل 2/1 كيلو
B143: =IF(D143<>"",MAX($B$5:B142)+1,"") -> 138 | C143: 18011 | D143: شحم حراري
B144: =IF(D144<>"",MAX($B$5:B143)+1,"") -> 139 | C144: 18018 | D144: بستلة شجم موبيل 18MBك
B145: =IF(D145<>"",MAX($B$5:B144)+1,"") -> 140 | C145: 4320361 | D145: طقم حشو بستم صينيه واقف
B146: =IF(D146<>"",MAX($B$5:B145)+1,"") -> 141 | C146: 4320374 | D146: طقم حشو قلاب عمل امامي
B147: =IF(D147<>"",MAX($B$5:B146)+1,"") -> 142 | C147: 4320368 | D147: كامه وش سليندر استيراد
B148: =IF(D148<>"",MAX($B$5:B147)+1,"") -> 143 | C148: 4320369 | D148: وش تقسيمة استيراد
B149: =IF(D149<>"",MAX($B$5:B148)+1,"") -> 144 | C149: 4320370 | D149: طقم اصلاح محرك
B150: =IF(D150<>"",MAX($B$5:B149)+1,"") -> 145 | C150: 4320371 | D150: تيلة 6 ملي
B151: =IF(D151<>"",MAX($B$5:B150)+1,"") -> 146 | C151: 4320372 | D151: مارش دويتس 1013 اصلي
B152: =IF(D152<>"",MAX($B$5:B151)+1,"") -> 147 | C152: 4320373 | D152: خرطوم 3/4 R
B153: =IF(D153<>"",MAX($B$5:B152)+1,"") -> 148 | C153: 4320365 | D153: مارش دويتس 12 فولت
B154: =IF(D154<>"",MAX($B$5:B153)+1,"") -> 149 | C154: 4320366 | D154: رشاش جاز 1013 دويتس
B155: =IF(D155<>"",MAX($B$5:B154)+1,"") -> 150 | C155: 4320367 | D155: سوستة بنزين
B156: =IF(D156<>"",MAX($B$5:B155)+1,"") -> 151 | C156: 43202619 | D156: بليه 5205ياباني
B157: =IF(D157<>"",MAX($B$5:B156)+1,"") -> 152 | C157: 43202593 | D157: بليه 22209
B158: =IF(D158<>"",MAX($B$5:B157)+1,"") -> 153 | C158: 43202597 | D158: بليه 22212
B159: =IF(D159<>"",MAX($B$5:B158)+1,"") -> 154 | C159: 43202598 | D159: صليبه كردان مكنسه طريق
B160: =IF(D160<>"",MAX($B$5:B159)+1,"") -> 155 | C160: 43202599 | D160: ديسك مكنسه طريق
B161: =IF(D161<>"",MAX($B$5:B160)+1,"") -> 156 | C161: 43202600 | D161: طقم شمبر هراس
B162: =IF(D162<>"",MAX($B$5:B161)+1,"") -> 157 | C162: 43202601 | D162: طلمبه سياره بنزين
B163: =IF(D163<>"",MAX($B$5:B162)+1,"") -> 158 | C163: 43202602 | D163: قاعده طلمبه
B164: =IF(D164<>"",MAX($B$5:B163)+1,"") -> 159 | C164: 43202603 | D164: قنطره موتور
B165: =IF(D165<>"",MAX($B$5:B164)+1,"") -> 160 | C165: 43202604 | D165: كاوتشه عمه
B166: =IF(D166<>"",MAX($B$5:B165)+1,"") -> 161 | C166: 43202605 | D166: حساس شجره فتيس
B167: =IF(D167<>"",MAX($B$5:B166)+1,"") -> 162 | C167: 43202606 | D167: زرار تشغيل حله خرسانه احمر
B168: =IF(D168<>"",MAX($B$5:B167)+1,"") -> 163 | C168: 43202607 | D168: قفل مزراب خلاطه اكتروس
B169: =IF(D169<>"",MAX($B$5:B168)+1,"") -> 164 | C169: 43202608 | D169: واير تشغيل حله خلاطه 7 متر
B170: =IF(D170<>"",MAX($B$5:B169)+1,"") -> 165 | C170: 43202609 | D170: واير تشغيل حله خلاطه 7.5 متر
B171: =IF(D171<>"",MAX($B$5:B170)+1,"") -> 166 | C171: 43202610 | D171: مرايا رصيف مرسيدس
B172: =IF(D172<>"",MAX($B$5:B171)+1,"") -> 167 | C172: 43202611 | D172: قشره سليم مع الرفراف
B173: =IF(D173<>"",MAX($B$5:B172)+1,"") -> 168 | C173: 43202612 | D173: شربون دينامو
B174: =IF(D174<>"",MAX($B$5:B173)+1,"") -> 169 | C174: 43202613 | D174: وش سلندر نيسان
B175: =IF(D175<>"",MAX($B$5:B174)+1,"") -> 170 | C175: 43202614 | D175: كامة وش سليندر
B176: =IF(D176<>"",MAX($B$5:B175)+1,"") -> 171 | C176: 43202615 | D176: طقم تروس كتينه استيراد
B177: =IF(D177<>"",MAX($B$5:B176)+1,"") -> 172 | C177: 43202616 | D177: تربو نيسان
B178: =IF(D178<>"",MAX($B$5:B177)+1,"") -> 173 | C178: 43202617 | D178: طلمبه جاز استيراد
B179: =IF(D179<>"",MAX($B$5:B178)+1,"") -> 174 | C179: 43202618 | D179: حساس كرنك
B180: =IF(D180<>"",MAX($B$5:B179)+1,"") -> 175 | C180: 43202544 | D180: طقم بلي عجل امامي نيسان
B181: =IF(D181<>"",MAX($B$5:B180)+1,"") -> 176 | C181: 43202545 | D181: طاسة شحم عجل امامي نيسان
B182: =IF(D182<>"",MAX($B$5:B181)+1,"") -> 177 | C182: 43202546 | D182: مارش اوتوماتيك نيسان استيراد
B183: =IF(D183<>"",MAX($B$5:B182)+1,"") -> 178 | C183: 43202547 | D183: طبة وش تقسيمة مفكوكة من موتور الانتاير
B184: =IF(D184<>"",MAX($B$5:B183)+1,"") -> 179 | C184: 43202548 | D184: سيخ عمود تكعمات مفكوك من موتور الانتاير
B185: =IF(D185<>"",MAX($B$5:B184)+1,"") -> 180 | C185: 43202551 | D185: عوامة ديمكس صيني
B186: =IF(D186<>"",MAX($B$5:B185)+1,"") -> 181 | C186: 43202549 | D186: سير مشرشر 75*13
B187: =IF(D187<>"",MAX($B$5:B186)+1,"") -> 182 | C187: 43202550 | D187: غطاء زيت موتور صيني
B188: =IF(D188<>"",MAX($B$5:B187)+1,"") -> 183 | C188: 3927909 | D188: طقم تيل فرامل امامى - نيسان
B189: =IF(D189<>"",MAX($B$5:B188)+1,"") -> 184 | C189: 3927910 | D189: طقم تيل فرامل خلفى - نيسان
B190: =IF(D190<>"",MAX($B$5:B189)+1,"") -> 185 | C190: 3927918 | D190: بلف شفط ديمكس - يابانى
B191: =IF(D191<>"",MAX($B$5:B190)+1,"") -> 186 | C191: 3927919 | D191: بستم ابنص ديمكس - يابانى
B192: =IF(D192<>"",MAX($B$5:B191)+1,"") -> 187 | C192: 3927920 | D192: جلدة ماستر عجل خلفى 13/16 - نيسان
B193: =IF(D193<>"",MAX($B$5:B192)+1,"") -> 188 | C193: 3927904 | D193: دينامو جامبو 112 - تايلاندى
B194: =IF(D194<>"",MAX($B$5:B193)+1,"") -> 189 | C194: 3927905 | D194: نصف مارش - استيراد - اتناير
B195: =IF(D195<>"",MAX($B$5:B194)+1,"") -> 190 | C195: 3927906 | D195: كابل كهرباء بطارية
B196: =IF(D196<>"",MAX($B$5:B195)+1,"") -> 191 | C196: 3927907 | D196: مسمار كردان
B197: =IF(D197<>"",MAX($B$5:B196)+1,"") -> 192 | C197: 3927908 | D197: كرسى نص جامبو - اتناير - تايلاندى
B198: =IF(D198<>"",MAX($B$5:B197)+1,"") -> 193 | C198: 3927911 | D198: زجاج امامى اكترس
B199: =IF(D199<>"",MAX($B$5:B198)+1,"") -> 194 | C199: 3927912 | D199: طقم دبرياج 2 اسطوانة 40 سم اكتروس - فاليو
B200: =IF(D200<>"",MAX($B$5:B199)+1,"") -> 195 | C200: 3927913 | D200: هلال كرنك - يابانى - دبابة
... 6952 more rows
